Workbook

Sheet Introduction
A3: . . . . . . . . . . . . . . . . . . . . . . . . . . . . . . . . . . . . . . . . . . . . . . . . .
B5: Guidelines For Estimating
B6: Weaner Pig (Nursery) Costs 6 to 26 kg
B7: =" Based on marketing "&FIXED('Weanling Input'!F15,0)&" pigs" -> Based on marketing 35,512 pigs
F10: Date: | G10: April, 2023
B15: This guide is designed to provide you with planning information and a format for calculating costs of production of a swine weaner 6 to 26 kg enterprise in Manitoba. This type of operation is intended to represent the second stage, or nursery, of a three stage pork system. General Manitoba Agriculture recommendations are assumed in using feed and veterinary inputs. These figures provide an economic evaluation of the livestock and estimated prices required to cover all costs. Costs include labour, investment and depreciation, but do not include management costs, nor do they necessarily represent the average cost of production in Manitoba.
B26: These budgets may be adjusted by putting in your own figures. As a producer you are encouraged to calculate your own costs of production. The assumptions on which the costs are based are outlined in the supporting pages. These assumptions were arrived at using the breeding stock, management practices, and facilities seen in modern, well managed swine operations of comparable size in Manitoba. Productivity and performance assumptions are based on information collected by department specialists, feed companies and other organizations. Where individual herd productivity and performance levels differ from those listed, adjustments will be required.
B36: This tool is available as an Excel worksheet at:
B44: is also available to help
B45: determine machinery costs.
B52: Note: This budget is only a guide and is not intended as an in-depth study of the cost of production of this industry. Interpretation and use of this information is the responsibility of the user. If you need help with a budget, contact a Farm Management Specialist.

Sheet Assumptions
A2: Weaner Pig (Nursery) Costs 6 to 26 kg Cost of Production
B5: The following farrow wean cost of production budget is based on the assumption that all feed is purchased or home mixed.
B8: ="The budget includes a land investment cost for "&'Weanling Input'!G141&" acres, with "&'Weanling Input'!G142&" acres rented out at $"&'Weanling Input'!G143&" per acre, of the estimated "&ROUND(((('Weaner-Worksheet'!D108*'Weanling Input'!F121)/(40.768*2))*2.4709661),0)&" to "&ROUND(((('Weaner-Worksheet'!D108*'Weanling Input'!F121)/(26.362*2))*2.4709661),0)&" acres of total landbase that would be required for this size of livestock operation. This land base falls within the 2XP2O5 application rate, soil phosphorus levels permitting." -> The budget includes a land investment cost for 40 acres, with 0 acres rented out at $80 per acre, of the estimated 81 to 126 acres of total landbase that would be required for this size of livestock operation. This land base falls within the 2XP2O5 application rate, soil phosphorus levels permitting.
B12: If developing a cost of production budget to include home mixed rations the following items should be added to the budget:
B14: - additional equipment costs associated with a mix mill;
B15: - additional bins for different ingredients;
B16: - additional labour for feed preparation.
B18: The rations illustrated in this budget are examples only. Individual farm conditions should be taken into account when formulating the diets. Producers need to know what the feed intakes of their animals are. Please consult with a nutritionist for diet formulations suggestions.
B23: The Manitoba pork production industry profile is changing and this budget was specifically designed to address the need of producers who may want to analyze the cost of starting up or switching to a swine nursery 6 to 26 kg operation. Several companies are offering contracts with varying levels of guarantees. Producers need to accurately calculate their costs before they can properly make a decision.

Sheet Weaner-Summary
A1: ="Weaner Pig (Nursery) 6 to 26 kg Summary - "&Introduction!G10 -> Weaner Pig (Nursery) 6 to 26 kg Summary - April, 2023
E3: Purchased Feed | H3: Home-Mixed Feed
E4: $/Pig | F4: Total | H4: $/Pig | I4: Total
A5: A. Operating Costs | E5: Sold | F5: Cost | H5: Sold | I5: Cost | K5: Your Cost
A6: 1. | B6: Feed Costs:
B7: 1.01 | C7: Pre Starter 1 | E7: ='Weaner-Worksheet'!D12 -> 1.6 | F7: =ROUND(E7*'Weanling Input'!$F$15,0) -> 56819 | H7: ='Weaner-Worksheet'!D17 -> 0.95 | I7: =ROUND(H7*'Weanling Input'!$F$15,0) -> 33736
B8: 1.02 | C8: Pre Starter 2 | E8: ='Weaner-Worksheet'!D23 -> 6.45 | F8: =ROUND(E8*'Weanling Input'!$F$15,0) -> 229052 | H8: ='Weaner-Worksheet'!D28 -> 3.49 | I8: =ROUND(H8*'Weanling Input'!$F$15,0) -> 123937
B9: 1.03 | C9: Starter 1 | E9: ='Weaner-Worksheet'!D34 -> 14.27 | F9: =ROUND(E9*'Weanling Input'!$F$15,0) -> 506756 | H9: ='Weaner-Worksheet'!D39 -> 8.45 | I9: =ROUND(H9*'Weanling Input'!$F$15,0) -> 300076
B10: 1.04 | C10: Starter 2 | E10: ='Weaner-Worksheet'!D45 -> 19.41 | F10: =ROUND(E10*'Weanling Input'!$F$15,0) -> 689288 | H10: ='Weaner-Worksheet'!D50 -> 13.82 | I10: =ROUND(H10*'Weanling Input'!$F$15,0) -> 490776
A11: Total Feed Cost | E11: =SUM(E7:E10) -> 41.73 | F11: =SUM(F7:F10) -> 1481915 | H11: =SUM(H7:H10) -> 26.71 | I11: =SUM(I7:I10) -> 948525
A13: 2. | B13: Other Operating Costs:
B14: 2.01 | C14: Weanling cost | E14: ='Weaner-Worksheet'!D56 -> 47.85 | F14: =ROUND(E14*'Weanling Input'!$F$15,0) -> 1699249 | H14: =E14 -> 47.85 | I14: =ROUND(H14*'Weanling Input'!$F$15,0) -> 1699249
B15: 2.02 | C15: Veterinary Medicine & Supplies | E15: ='Weaner-Worksheet'!D62 -> 2.81595 | F15: =ROUND(E15*'Weanling Input'!$F$15,0) -> 100000 | H15: =E15 -> 2.81595 | I15: =ROUND(H15*'Weanling Input'!$F$15,0) -> 100000
B16: 2.03 | C16: Maintenance & Repairs | E16: ='Weaner-Worksheet'!D68 -> 0.18 | F16: =ROUND(E16*'Weanling Input'!$F$15,0) -> 6392 | H16: 0.18 | I16: =ROUND(H16*'Weanling Input'!$F$15,0) -> 6392
B17: 2.04 | C17: Hydro & Propane | E17: ='Weaner-Worksheet'!D74 -> 1.5811 | F17: =ROUND(E17*'Weanling Input'!$F$15,0) -> 56148 | H17: 1.5811 | I17: =ROUND(H17*'Weanling Input'!$F$15,0) -> 56148
B18: 2.05 | C18: Insurance | E18: ='Weaner-Worksheet'!D94 -> 0.34 | F18: =ROUND(E18*'Weanling Input'!$F$15,0) -> 12074 | H18: 0.34 | I18: =ROUND(H18*'Weanling Input'!$F$15,0) -> 12074
B19: 2.06 | C19: Manure Costs | E19: ='Weaner-Worksheet'!D139 -> 0.3840499538 | F19: =ROUND(E19*'Weanling Input'!$F$15,0) -> 13638 | H19: 0.3840499538 | I19: =ROUND(H19*'Weanling Input'!$F$15,0) -> 13638
B20: 2.07 | C20: Office Supplies | E20: ='Weaner-Worksheet'!D145 -> 0.04393 | F20: =ROUND(E20*'Weanling Input'!$F$15,0) -> 1560 | H20: 0.04393 | I20: =ROUND(H20*'Weanling Input'!$F$15,0) -> 1560
B21: 2.08 | C21: Levy, Marketing & Transportation | E21: ='Weaner-Worksheet'!D151 -> 3.74 | F21: =ROUND(E21*'Weanling Input'!$F$15,0) -> 132815 | H21: 3.74 | I21: =ROUND(H21*'Weanling Input'!$F$15,0) -> 132815
B22: 2.09 | C22: Property Taxes | E22: ='Weaner-Worksheet'!D156 -> 0.28159 | F22: =ROUND(E22*'Weanling Input'!$F$15,0) -> 10000 | H22: 0.28159 | I22: =ROUND(H22*'Weanling Input'!$F$15,0) -> 10000
A23: Subtotal Operating Costs | E23: =SUM(E11:E22) -> 98.94661995 | F23: =SUM(F11:F22) -> 3513791 | H23: =SUM(H11:H22) -> 83.92661995 | I23: =SUM(I11:I22) -> 2980401
B24: 2.10 | C24: Interest on Operating Cost | E24: ='Weaner-Worksheet'!D172 -> 0.89 | F24: =ROUND(E24*'Weanling Input'!$F$15,0) -> 31606 | H24: ='Weaner-Worksheet'!D180 -> 0.8 | I24: =ROUND(H24*'Weanling Input'!$F$15,0) -> 28410
A25: Total Operating Costs | E25: =E23+E24 -> 99.83661995 | F25: =F23+F24 -> 3545397 | H25: =H23+H24 -> 84.72661995 | I25: =I23+I24 -> 3008811
A27: B. Fixed Costs
A28: 3. | B28: Depreciation:
B29: 3.01 | C29: Buildings and Manure Storage | E29: ='Weaner-Worksheet'!D192 -> 0.72 | F29: =ROUND(E29*'Weanling Input'!$F$15,0) -> 25569 | H29: ='Weaner-Worksheet'!D198 -> 0.76 | I29: =ROUND(H29*'Weanling Input'!$F$15,0) -> 26989
B30: 3.02 | C30: Equipment | E30: ='Weaner-Worksheet'!D205 -> 1.19 | F30: =ROUND(E30*'Weanling Input'!$F$15,0) -> 42259 | H30: ='Weaner-Worksheet'!D211 -> 1.36 | I30: =ROUND(H30*'Weanling Input'!$F$15,0) -> 48296
B31: Total Depreciation Cost | E31: =E29+E30 -> 1.91 | F31: =ROUND(E31*'Weanling Input'!$F$15,0) -> 67828 | H31: =H29+H30 -> 2.12 | I31: =ROUND(H31*'Weanling Input'!$F$15,0) -> 75285
A32: 4. | B32: Investment:
B33: 4.01 | C33: Land Cost | E33: ='Weaner-Worksheet'!D221 -> 0.113060374 | F33: =ROUND(E33*'Weanling Input'!$F$15,0) -> 4015 | H33: =E33 -> 0.113060374 | I33: =ROUND(H33*'Weanling Input'!$F$15,0) -> 4015
B34: 4.02 | C34: Buildings and Manure Storage | E34: ='Weaner-Worksheet'!D235 -> 0.29 | F34: =ROUND(E34*'Weanling Input'!$F$15,0) -> 10298 | H34: ='Weaner-Worksheet'!D242 -> 0.31 | I34: =ROUND(H34*'Weanling Input'!$F$15,0) -> 11009
B35: 4.03 | C35: Equipment | E35: ='Weaner-Worksheet'!D250 -> 0.2 | F35: =ROUND(E35*'Weanling Input'!$F$15,0) -> 7102 | H35: ='Weaner-Worksheet'!D257 -> 0.22 | I35: =ROUND(H35*'Weanling Input'!$F$15,0) -> 7813
B36: Total Investment Cost | E36: =SUM(E33:E35) -> 0.603060374 | F36: =ROUND(E36*'Weanling Input'!$F$15,0) -> 21416 | H36: =SUM(H33:H35) -> 0.643060374 | I36: =ROUND(H36*'Weanling Input'!$F$15,0) -> 22836
A37: Total Fixed Costs | E37: =E31+E36 -> 2.513060374 | F37: =F31+F36 -> 89244 | H37: =H31+H36 -> 2.763060374 | I37: =I31+I36 -> 98121
A39: C. Labour
B40: Wages, benefits and hired manager | E40: ='Weaner-Worksheet'!D264 -> 1.9 | F40: =ROUND(E40*'Weanling Input'!$F$15,0) -> 67473 | H40: =E40 -> 1.9 | I40: =ROUND(H40*'Weanling Input'!$F$15,0) -> 67473
A42: Total Cost of Production | E42: =E25+E37+E40 -> 104.2496803 | F42: =F25+F37+F40 -> 3702114 | H42: =H25+H37+H40 -> 89.38968033 | I42: =I25+I37+I40 -> 3174405
A44: Profitability and Breakeven Analysis
A46: Estimated Farmgate | E46: Per Pig | F46: Total | H46: Per Pig | I46: Total
B47: Market Price per weanling | E47: ='Weanling Input'!F16 -> 87 | F47: =ROUND(E47*'Weanling Input'!$F$15,0) -> 3089544 | H47: =E47 -> 87 | I47: =ROUND(H47*'Weanling Input'!$F$15,0) -> 3089544
B48: Land rental per head sold | E48: =SUM('Weanling Input'!G142*'Weanling Input'!G143)/'Weanling Input'!F15 -> 0 | F48: =ROUND(E48*'Weanling Input'!$F$15,0) -> 0 | H48: =E48 -> 0 | I48: =ROUND(H48*'Weanling Input'!$F$15,0) -> 0
B49: Gross Revenue / hog | E49: =SUM(E47:E48) -> 87 | F49: =SUM(F47:F48) -> 3089544 | H49: =SUM(H47:H48) -> 87 | I49: =SUM(I47:I48) -> 3089544
A51: Marginal Returns
B52: Over Operating Costs | E52: =SUM(E49-E25) -> -12.83661995 | F52: =ROUND(E52*'Weanling Input'!$F$15,0) -> -455854 | H52: =SUM(H49-H25) -> 2.273380046 | I52: =ROUND(H52*'Weanling Input'!$F$15,0) -> 80732
B53: Over Operating & Labour Costs | E53: =SUM(E49-E25-E40) -> -14.73661995 | F53: =ROUND(E53*'Weanling Input'!$F$15,0) -> -523327 | H53: =SUM(H49-H25-H40) -> 0.3733800462 | I53: =ROUND(H53*'Weanling Input'!$F$15,0) -> 13259
B54: Over Total Costs (Net Profit) | E54: =SUM(E49-E42) -> -17.24968033 | F54: =ROUND(E54*'Weanling Input'!$F$15,0) -> -612571 | H54: =SUM(H49-H42) -> -2.389680328 | I54: =ROUND(H54*'Weanling Input'!$F$15,0) -> -84862
A56: Operating Expense Ratio | E56: =SUM(E25/E49) -> 1.147547356 | H56: =SUM(H25/H49) -> 0.9738691949
A58: Breakeven Selling Price | E58: $/Pig | H58: $/Pig
B59: Operating Costs | E59: =E25 -> 99.83661995 | H59: =H25 -> 84.72661995
B60: Operating & Labour Costs | E60: =E25+E40 -> 101.73662 | H60: =H25+H40 -> 86.62661995
B61: Total Costs | E61: =E42 -> 104.2496803 | H61: =H42 -> 89.38968033
A63: Return On Assets (ROA) | E63: =SUM(((E54+E36+E24)*'Weanling Input'!$F$15)/(('Weanling Input'!$H$76-'Weanling Input'!$H$62-'Weanling Input'!$H$53)+(('Weanling Input'!F16/2)*'Weanling Input'!F10))) -> -0.372684886 | H63: =SUM(((H54+H36+H24)*'Weanling Input'!$F$15)/(('Weanling Input'!$H$76)+(('Weanling Input'!F16/2)*'Weanling Input'!F10))) -> -0.02092652378
A65: Note: This budget is only a guide and is not intended as an in depth study of the cost of production of this industry. Interpretation and utilization of this information is the responsibility of the user.

Sheet Risk Analysis
A1: Risk & Sensitivity Analysis
C3: Purchased Feed | D3: Home-Mixed Feed
C4: Per Pig | D4: Per Pig
A5: A. Operating Costs
B6: Feed cost | C6: ='Weaner-Summary'!E11 -> 41.73 | D6: ='Weaner-Summary'!H11 -> 26.71
B7: Weanling cost | C7: ='Weanling Input'!F18 -> 47.85 | D7: =C7 -> 47.85
B8: Other Operating Costs | C8: =SUM('Weaner-Summary'!E25-'Risk Analysis'!C6-'Risk Analysis'!C7) -> 10.25661995 | D8: =SUM('Weaner-Summary'!H25-'Risk Analysis'!D6-'Risk Analysis'!D7) -> 10.16661995
B9: Subtotal | C9: =SUM(C6:C8) -> 99.83661995 | D9: =SUM(D6:D8) -> 84.72661995
A10: B. Fixed Costs | C10: ='Weaner-Summary'!E37 -> 2.513060374 | D10: ='Weaner-Summary'!H37 -> 2.763060374
A11: C. Labour | C11: ='Weaner-Summary'!E40 -> 1.9 | D11: ='Weaner-Summary'!H40 -> 1.9
A12: Total Costs | C12: =SUM(C9:C11) -> 104.2496803 | D12: =SUM(D9:D11) -> 89.38968033
A14: Estimated Farmgate
B15: Price ($ per weanling) | C15: ='Weanling Input'!F16 -> 87 | D15: =C15 -> 87
C18: Up | D18: Down
B19: Percent Market Price Variation | C19: 0.1 | D19: 0.1
B20: Percent Feed Cost Variation | C20: 0.1 | D20: 0.05
B21: Percent Weanling Cost Variation | C21: 0.05 | D21: 0.05
B24: Higher Market Price | C24: =SUM(C15*(1+C19)) -> 95.7 | D24: =SUM(D15*(1+C19)) -> 95.7
B25: Lower Market Price | C25: =SUM(C15*(1-D19)) -> 78.3 | D25: =SUM(D15*(1-D19)) -> 78.3
B26: Higher Feed Cost | C26: =SUM(C6+(C6*C20)) -> 45.903 | D26: =SUM(D6+(D6*C20)) -> 29.381
B27: Lower Feed Cost | C27: =SUM(C6-(C6*D20)) -> 39.6435 | D27: =SUM(D6-(D6*D20)) -> 25.3745
B28: Higher Weanling Purchase Cost | C28: =SUM(C7*(1+C21)) -> 50.2425 | D28: =SUM(D7*(1+C21)) -> 50.2425
B29: Lower Weanling Purchase Cost | C29: =SUM(C7*(1-D21)) -> 45.4575 | D29: =SUM(D7*(1-D21)) -> 45.4575
A31: ="Higher Margin Scenario - Market Price Up "&C19*100&"%, Feed Price Down "&D20*100&"% and Weanling Purchase Cost Down "&D21*100&"%" -> Higher Margin Scenario - Market Price Up 10%, Feed Price Down 5% and Weanling Purchase Cost Down 5%
B32: Operating Costs | C32: =SUM(C29+C27+C8) -> 95.35761995 | D32: =SUM(D29+D27+D8) -> 80.99861995
B33: Total Costs | C33: =C32+C11+C10 -> 99.77068033 | D33: =D32+D11+D10 -> 85.66168033
B34: Gross Revenue / hog | C34: =C24 -> 95.7 | D34: =D24 -> 95.7
B35: Marginal Returns
B36: Over Operating Costs | C36: =SUM(C34-C32) -> 0.3423800462 | D36: =SUM(D34-D32) -> 14.70138005
B37: Over Operating & Labour Costs | C37: =SUM(C34-C32-C11) -> -1.557619954 | D37: =SUM(D34-D32-D11) -> 12.80138005
B38: Over Total Costs (Net Profit) | C38: =SUM(C34-C33) -> -4.070680328 | D38: =SUM(D34-D33) -> 10.03831967
B39: Operating Expense Ratio | C39: =SUM(C32/C34) -> 0.9964223611 | D39: =SUM(D32/D34) -> 0.8463805638
B40: Return on Asset (ROA) | C40: =SUM(((C38+'Weaner-Summary'!$H$36+'Weaner-Summary'!$H$24)*'Weanling Input'!$F$15)/(('Weanling Input'!$H$76-'Weanling Input'!$H$53-'Weanling Input'!$H$62)+((C34/2)*'Weanling Input'!$F$10))) -> -0.06122756906 | D40: =SUM(((D38+'Weaner-Summary'!$H$36+'Weaner-Summary'!$H$24)*'Weanling Input'!$F$15)/(('Weanling Input'!$H$76)+((D34/2)*'Weanling Input'!$F$10))) -> 0.2502896025
A42: ="Lower Margin Scenario - Market Price Down "&D19*100&"%, Feed Price Up "&C20*100&"% and Weanling Purchase Cost Up "&C21*100&"%" -> Lower Margin Scenario - Market Price Down 10%, Feed Price Up 10% and Weanling Purchase Cost Up 5%
B43: Operating Costs | C43: =SUM(C8+C26+C28) -> 106.40212 | D43: =SUM(D8+D26+D28) -> 89.79011995
B44: Total Costs | C44: =C10+C11+C43 -> 110.8151803 | D44: =D10+D11+D43 -> 94.45318033
B45: Gross Revenue / hog | C45: =C25 -> 78.3 | D45: =D25 -> 78.3
B46: Marginal Returns
B47: Over Operating Costs | C47: =SUM(C45-C43) -> -28.10211995 | D47: =SUM(D45-D43) -> -11.49011995
B48: Over Operating & Labour Costs | C48: =SUM(C45-C43-C11) -> -30.00211995 | D48: =SUM(D45-D43-D11) -> -13.39011995
B49: Over Total Costs (Net Profit) | C49: =SUM(C45-C44) -> -32.51518033 | D49: =SUM(D45-D44) -> -16.15318033
B50: Operating Expense Ratio | C50: =SUM(C43/C45) -> 1.358903192 | D50: =SUM(D43/D45) -> 1.146744827
B51: Return on Asset (ROA) | C51: =SUM(((C49+'Weaner-Summary'!$H$36+'Weaner-Summary'!$H$24)*'Weanling Input'!$F$15)/(('Weanling Input'!$H$76-'Weanling Input'!$H$53-'Weanling Input'!$H$62)+((C45/2)*'Weanling Input'!$F$10))) -> -0.7461780142 | D51: =SUM(((D49+'Weaner-Summary'!$H$36+'Weaner-Summary'!$H$24)*'Weanling Input'!$F$15)/(('Weanling Input'!$H$76)+((D45/2)*'Weanling Input'!$F$10))) -> -0.3298348128
A54: Note: This budget is only a guide and is not intended as an in depth study of the cost of production of this industry. Interpretation and utilization of this information is the responsibility of the user.

Sheet Weanling Input
A2: Weaner Pig (Nursery) Production Costs 6 to 26 kg
A4: 1. This input table outlines the cost of production for the weaner barn only.
A5: 2. Buildings and equipment are valued at new cost.
A6: 3. Manure haulage is contracted out.
A8: Herd Profile
A10: Weaner Pig Places | F10: 5200
A11: Number of turns | F11: 7
A12: Weaner Pigs Purchased | F12: =F10*F11 -> 36400
A13: Percent Post-Weaning Mortality | F13: 2.44
A14: Pigs Died, Post-Weaning | F14: =ROUND(F13*F12/100,0) -> 888
A15: Weaner Pigs Sold | F15: =ROUND(F12-F14,0) -> 35512
A16: Average Market Price | F16: 87 | G16: /cwt | H16: =F16*2.2046 -> 191.8002 | I16: /ckg
A17: Weanling Formula Factor (% of Mkt Price) | F17: 55 | G17: %
A18: Calculated Weanling Puchase Price | F18: =F16*F17/100 -> 47.85 | G18: /pig
A20: Feed Requirements | G20: Ration Cost per tonne
G21: Purchased | H21: Home-Mixed
A22: Pre Starter 1(sew) | E22: 0.8 | F22: kg/pig | G22: 2000 | H22: ='Feed-Summary'!H29 -> 1186.470875
A23: Pre Starter 2 | E23: 4 | F23: kg/pig | G23: 1611.5 | H23: ='Feed-Summary'!H54 -> 873.304625
A24: Starter 1 | E24: 11.9 | F24: kg/pig | G24: 1199 | H24: ='Feed-Summary'!H79 -> 710.474375
A25: Starter 2 | E25: 24 | F25: kg/pig | G25: 808.65 | H25: ='Feed-Summary'!H105 -> 575.973875
A26: Total Feed | E26: =SUM(E22:E25) -> 40.7 | F26: kg/pig
A28: Weaner Pig Efficiency | E28: Ration 1 | F28: Ration 2 | G28: Ration 3 | H28: Ration 4
A29: Days Post-Weaning (nursery) | E29: 2 | F29: 8 | G29: 17 | H29: 15 | I29: =SUM(E29:H29) -> 42
A30: Target Starting Weight (kg) | E30: 6 | F30: 6.5 | G30: 9 | H30: 16 | I30: =E30 -> 6
A31: Target Ending Weight (kg) | E31: 6.5 | F31: 9 | G31: 16 | H31: 26 | I31: =H31 -> 26
A32: Feed Conversion Ratio | E32: =E22/(E31-E30) -> 1.6 | F32: =E23/(F31-F30) -> 1.6 | G32: =E24/(G31-G30) -> 1.7 | H32: =E25/(H31-H30) -> 2.4 | I32: =((E32*($E$31-$E$30)+F32*($F$31-$F$30)+G32*($G$31-$G$30)+H32*($H$31-$H$30)))/($I$31-$I$30) -> 2.035
A33: Average Daily Gain (kg) | E33: =(E31-E30)/E29 -> 0.25 | F33: =(F31-F30)/F29 -> 0.3125 | G33: =(G31-G30)/G29 -> 0.4117647059 | H33: =(H31-H30)/H29 -> 0.6666666667 | I33: =((E33*($E$31-$E$30)+F33*($F$31-$F$30)+G33*($G$31-$G$30)+H33*($H$31-$H$30)))/($I$31-$I$30) -> 0.5227634804
A35: Days Weaner on feed (nursery) | F35: =I29 -> 42 | G35: days
A36: Total Cycle Days (per turn) | F36: =ROUND(365/F11,0) -> 52 | G36: days
A37: Target Starting Weight | F37: =I30 -> 6 | G37: kg
A38: Target Ending Weight | F38: =I31 -> 26 | G38: kg
A39: Feed Conversion Ratio (feed:gain) | F39: =I32 -> 2.035 | G39: kg
A40: Average Daily Gain | F40: =I33 -> 0.5227634804 | G40: kg
A42: Labour
A43: Total Hours per 7-day week | F43: 48 | G43: hours/week
A44: Wage (includes benefits & hired manager) | F44: 27 | G44: /hour
B47: Capital Investment
F49: $/Sq. Ft. | G49: $/Pig Place | H49: Total | I49: Your Cost
A50: Buildings
B51: Barn | D51: =F10*3 -> 15600 | E51: sq ft | F51: 42 | G51: =H51/F10 -> 126 | H51: =F51*D51 -> 655200
B52: Office & loading | F52: 25000 | H52: 9000
B53: Feed Mill (building only) | H53: 45000
B54: Total Building Cost | H54: =SUM(H51:H52) -> 664200
A56: Equipment
B57: Nursery barn | H57: 340000
B58: Generator | H58: 15000
B59: Electrical & other | H59: 100000
B60: Fire Alarm System | H60: 1000
B61: Feed Bins | H61: 12000
B62: Feed Mill (equipment only) | H62: 60000
B63: Total Equipment Cost | H63: =SUM(H57:H62) -> 528000
A65: Total Buildings and Equipment Cost | G65: =H65/F10 -> 229.2692308 | H65: =H54+H63 -> 1192200
A67: Land Value
B68: Land Investment | D68: =G141-G142 -> 40 | E68: acres @ | F68: =G144 -> 2750 | H68: =D68*F68 -> 110000
B69: Land Investment | D69: =G142 -> 0 | E69: acres @ | F69: =G144 -> 2750 | H69: =D69*F69 -> 0
A71: Other Costs
B72: Site preparation | H72: 36000
B73: Manure Storage | H73: 42000
B74: Total Other Costs | H74: =H72+H73 -> 78000
A76: Total Capital Investment | G76: =H76/F10 -> 265.4230769 | H76: =H65+H68+H74+H69 -> 1380200
A79: Fixed Costs
A80: Depreciation (straight line):
B81: Useful Life:
C82: Buildings | G82: 25 | H82: years
C83: Equipment | G83: 10 | H83: years
B84: Salvage Value (% of original cost):
C85: Buildings | G85: 10 | H85: %
C86: Equipment | G86: 10 | H86: %
A88: Investment Interest Rate | G88: 2.75 | H88: %
A91: Other Operating Costs, Taxes and Land
A93: Veterinary Costs: | D93: Professional Services | G93: 2000 | H93: total
D94: Medication | G94: 98000 | H94: total
A96: Maintenance & Repair | G96: 0.55 | H96: % of Total Capital Investment
A98: Hydro & Propane | F98: Hydro rate | G98: 0.09324 | H98: per kwhr
F99: Hydro usage | G99: 200000 | H99: kwhr
F100: Propane rate | G100: 0.75 | H100: per litre
F101: Propane usage | G101: 50000 | H101: litres
A102: Insurance
D103: Buildings and Equipment | G103: 0.65 | H103: /$100 Capital Invested
D104: Market Pigs | G104: 0.65 | H104: /$100 Capital Invested
D105: Business Interruption | G105: 0.65 | H105: /$100 Capital Invested
D106: Business Interruption Value | G106: 45 | H106: per market pig
D107: Market Hog Value | G107: 87 | H107: market value
A109: Manure Costs:
C110: Storage volume | G110: 2.4 | H110: litres/pig/day
G111: 0.0029 | H111: /litre
G112: =G111*4.56409 -> 0.013235861 | H112: /gallon
C114: Odour control (barley straw) | G114: 0 | H114: total cost
C115: Manure Management Fee | G115: 3000 | H115: total cost
C117: Manure nutrient content | F117: nutrient | G117: fertilizer | H117: % nutrient
F118: kg/1000 | G118: value | H118: value cost
F119: litres | G119: $/lb | H119: recovery / sale
C120: Total Nitrogen | F120: 2.62 | G120: 0.77 | H120: 60
C121: Phosphate (P2O5) | F121: 0.59 | G121: 0.89 | H121: 0
C122: Potassium | F122: 1.37 | G122: 0.6 | H122: 0
E123: * kg/1000 L x 10 = lbs/1000 imp. Gallons
A124: Office supplies | G124: 0.3 | H124: /pig place
A126: Marketing & Transportation
D128: Trucking in | G128: 3.5 | H128: /pig
D129: Trucking out | G129: 0 | H129: /pig
D130: Council Levy | G130: 0.19 | H130: /pig
D131: Grading Charge | G131: 0 | H131: /pig
D132: Truck Washing | G132: 0 | H132: /pig
D133: Insurance | G133: 0.05 | H133: /pig
D134: Special Levy | G134: 0 | H134: /pig
A136: Property Tax:
C137: Tax on Weanling Barn & Land | G137: 10000 | H137: /year
C138: Land | G138: 10 | H138: /acre
A140: Land Value
C141: Number of acres | G141: 40
C142: Number of acres rented out | G142: 0
C143: Rental rate | G143: 80
C144: Land value per acre | G144: 2750
A146: Operating Loan Interest Rate | G146: 8.5 | H146: %
A149: ** FOOTNOTE: 1 cubic metre = 1000 litres
D150: 1 cubic metre = 35.314 cubic feet
D151: 1 cubic metre = 219.97 imperial gallons

Sheet Feed-Cost
A2: Feed Ingredient Costs
A4: Ingredients | E4: Price/tonne | G4: Your Cost
A5: Wheat | E5: 370
A6: Barley | E6: 320
A7: Corn | E7: 355
A8: Soybean Meal - 47 % | E8: 665
A9: Canola Meal - 34% | E9: 425
A10: Peas | E10: 390
A11: Grower Micro Premix | E11: 6000
A12: Canola Oil | E12: 2400
A13: Whey Powder | E13: 1364.6
A14: Fish Meal | E14: 3364.4
A15: Plasma | E15: 6270
A16: Limestone | E16: 203.95
A17: Dical (16% Ca-21% P) | E17: 1544.23
A18: Salt - 96% | E18: 261.9
A19: Phytase | E19: 14500
A20: L-Lysine HCL | E20: 2248.5
A21: L-Threonine | E21: 2815.6
A22: D,L-Methionine | E22: 3850.2
A23: Oats - Steam rolled | E23: 375
A24: Processing Cost
A25: (Hydro & Repairs/Maintenance & Insurance) | E25: 10
A26: Percent Weight loss due to processing | E26: 1.25 | F26: %
A27: Labour | E27: 10
D30: Suggested Home Mixed Rations
D31: Pre starter 1 | E31: Pre starter 2 | F31: Starter 1 | G31: Starter 2
D32: (kg) | E32: (kg) | F32: (kg) | G32: (kg)
A33: =A5 -> Wheat | D33: 106 | E33: 134.5 | F33: 405 | G33: 404
A34: Barley | D34: 0 | E34: 0 | F34: 0 | G34: 65
A35: Corn | D35: 0 | E35: 0 | F35: 249 | G35: 250
A36: Soybean Meal - 47 % | D36: 120 | E36: 130 | F36: 200 | G36: 227
A37: Canola Meal - 34% | D37: 0 | E37: 0 | F37: 0 | G37: 0
A38: Peas | D38: 0 | E38: 0 | F38: 0 | G38: 0
A39: =A11 -> Grower Micro Premix | D39: 5 | E39: 5 | F39: 5 | G39: 5
A40: Canola Oil | D40: 27 | E40: 19 | F40: 11 | G40: 0
A41: Whey Powder | D41: 121 | E41: 125 | F41: 70 | G41: 0
A42: Fish Meal | D42: 61 | E42: 75 | F42: 40 | G42: 25
A43: Plasma | D43: 59 | E43: 0 | F43: 0 | G43: 0
A44: Limestone | D44: 12.5 | E44: 12.5 | F44: 7 | G44: 11
A45: Dical (16% Ca-21% P) | D45: 10 | E45: 10 | F45: 8 | G45: 8
A46: Salt - 96% | D46: 3.5 | E46: 3.5 | F46: 3.5 | G46: 3.5
A47: Phytase | D47: 0 | E47: 0.5 | F47: 0.5 | G47: 0.5
A48: L-Lysine HCL | D48: 0.5 | E48: 0 | F48: 1 | G48: 1
A49: L-Threonine | D49: 0 | E49: 0 | F49: 0 | G49: 0
A50: D,L-Methionine | D50: 0 | E50: 0 | F50: 0 | G50: 0
A51: Oats - Steam rolled | D51: 474.5 | E51: 485 | F51: 0 | G51: 0
A52: Total must equal 1000 kg | D52: =SUM(D33:D51) -> 1000 | E52: =SUM(E33:E51) -> 1000 | F52: =SUM(F33:F51) -> 1000 | G52: =SUM(G33:G51) -> 1000
C56: Total Feed Ingredients per Weanling -- Nursery Barn
C57: Pre starter 1 | D57: Pre starter 2 | E57: Starter 1 | F57: Starter 2 | G57: Total
C58: (tonnes) | D58: (tonnes) | E58: (tonnes) | F58: (tonnes) | G58: (tonnes)
A59: =A5 -> Wheat | C59: =(('Weanling Input'!$E$22*D33/1000)*'Weanling Input'!$F$12/1000) -> 3.08672 | D59: =('Weanling Input'!$E$23*E33/1000)*'Weanling Input'!$F$12/1000 -> 19.5832 | E59: =(('Weanling Input'!$E$24*F33/1000)*'Weanling Input'!$F$12/1000) -> 175.4298 | F59: =(('Weanling Input'!$E$25*G33/1000)*'Weanling Input'!$F$12/1000) -> 352.9344 | G59: =SUM(C59:F59) -> 551.03412
A60: Barley | C60: =(('Weanling Input'!$E$22*D34/1000)*'Weanling Input'!$F$12/1000) -> 0 | D60: =('Weanling Input'!$E$23*E34/1000)*'Weanling Input'!$F$12/1000 -> 0 | E60: =(('Weanling Input'!$E$24*F34/1000)*'Weanling Input'!$F$12/1000) -> 0 | F60: =(('Weanling Input'!$E$25*G34/1000)*'Weanling Input'!$F$12/1000) -> 56.784 | G60: 56.784
A61: Corn | C61: =(('Weanling Input'!$E$22*D35/1000)*'Weanling Input'!$F$12/1000) -> 0 | D61: =('Weanling Input'!$E$23*E35/1000)*'Weanling Input'!$F$12/1000 -> 0 | E61: =(('Weanling Input'!$E$24*F35/1000)*'Weanling Input'!$F$12/1000) -> 107.85684 | F61: =(('Weanling Input'!$E$25*G35/1000)*'Weanling Input'!$F$12/1000) -> 218.4 | G61: 326.25684
A62: Soybean Meal - 47 % | C62: =(('Weanling Input'!$E$22*D36/1000)*'Weanling Input'!$F$12/1000) -> 3.4944 | D62: =('Weanling Input'!$E$23*E36/1000)*'Weanling Input'!$F$12/1000 -> 18.928 | E62: =(('Weanling Input'!$E$24*F36/1000)*'Weanling Input'!$F$12/1000) -> 86.632 | F62: =(('Weanling Input'!$E$25*G36/1000)*'Weanling Input'!$F$12/1000) -> 198.3072 | G62: 307.3616
A63: Canola Meal - 34% | C63: =(('Weanling Input'!$E$22*D37/1000)*'Weanling Input'!$F$12/1000) -> 0 | D63: =('Weanling Input'!$E$23*E37/1000)*'Weanling Input'!$F$12/1000 -> 0 | E63: =(('Weanling Input'!$E$24*F37/1000)*'Weanling Input'!$F$12/1000) -> 0 | F63: =(('Weanling Input'!$E$25*G37/1000)*'Weanling Input'!$F$12/1000) -> 0 | G63: 0
A64: Peas | C64: =(('Weanling Input'!$E$22*D38/1000)*'Weanling Input'!$F$12/1000) -> 0 | D64: =('Weanling Input'!$E$23*E38/1000)*'Weanling Input'!$F$12/1000 -> 0 | E64: =(('Weanling Input'!$E$24*F38/1000)*'Weanling Input'!$F$12/1000) -> 0 | F64: =(('Weanling Input'!$E$25*G38/1000)*'Weanling Input'!$F$12/1000) -> 0 | G64: 0
A65: =A11 -> Grower Micro Premix | C65: =(('Weanling Input'!$E$22*D39/1000)*'Weanling Input'!$F$12/1000) -> 0.1456 | D65: =('Weanling Input'!$E$23*E39/1000)*'Weanling Input'!$F$12/1000 -> 0.728 | E65: =(('Weanling Input'!$E$24*F39/1000)*'Weanling Input'!$F$12/1000) -> 2.1658 | F65: =(('Weanling Input'!$E$25*G39/1000)*'Weanling Input'!$F$12/1000) -> 4.368 | G65: 7.4074
A66: Canola Oil | C66: =(('Weanling Input'!$E$22*D40/1000)*'Weanling Input'!$F$12/1000) -> 0.78624 | D66: =('Weanling Input'!$E$23*E40/1000)*'Weanling Input'!$F$12/1000 -> 2.7664 | E66: =(('Weanling Input'!$E$24*F40/1000)*'Weanling Input'!$F$12/1000) -> 4.76476 | F66: =(('Weanling Input'!$E$25*G40/1000)*'Weanling Input'!$F$12/1000) -> 0 | G66: 8.3174
A67: Whey Powder | C67: =(('Weanling Input'!$E$22*D41/1000)*'Weanling Input'!$F$12/1000) -> 3.52352 | D67: =('Weanling Input'!$E$23*E41/1000)*'Weanling Input'!$F$12/1000 -> 18.2 | E67: =(('Weanling Input'!$E$24*F41/1000)*'Weanling Input'!$F$12/1000) -> 30.3212 | F67: =(('Weanling Input'!$E$25*G41/1000)*'Weanling Input'!$F$12/1000) -> 0 | G67: 52.04472
A68: Fish Meal | C68: =(('Weanling Input'!$E$22*D42/1000)*'Weanling Input'!$F$12/1000) -> 1.77632 | D68: =('Weanling Input'!$E$23*E42/1000)*'Weanling Input'!$F$12/1000 -> 10.92 | E68: =(('Weanling Input'!$E$24*F42/1000)*'Weanling Input'!$F$12/1000) -> 17.3264 | F68: =(('Weanling Input'!$E$25*G42/1000)*'Weanling Input'!$F$12/1000) -> 21.84 | G68: 51.86272
A69: Plasma | C69: =(('Weanling Input'!$E$22*D43/1000)*'Weanling Input'!$F$12/1000) -> 1.71808 | D69: =('Weanling Input'!$E$23*E43/1000)*'Weanling Input'!$F$12/1000 -> 0 | E69: =(('Weanling Input'!$E$24*F43/1000)*'Weanling Input'!$F$12/1000) -> 0 | F69: =(('Weanling Input'!$E$25*G43/1000)*'Weanling Input'!$F$12/1000) -> 0 | G69: 1.71808
A70: Limestone | C70: =(('Weanling Input'!$E$22*D44/1000)*'Weanling Input'!$F$12/1000) -> 0.364 | D70: =('Weanling Input'!$E$23*E44/1000)*'Weanling Input'!$F$12/1000 -> 1.82 | E70: =(('Weanling Input'!$E$24*F44/1000)*'Weanling Input'!$F$12/1000) -> 3.03212 | F70: =(('Weanling Input'!$E$25*G44/1000)*'Weanling Input'!$F$12/1000) -> 9.6096 | G70: 14.82572
A71: Dical (16% Ca-21% P) | C71: =(('Weanling Input'!$E$22*D45/1000)*'Weanling Input'!$F$12/1000) -> 0.2912 | D71: =('Weanling Input'!$E$23*E45/1000)*'Weanling Input'!$F$12/1000 -> 1.456 | E71: =(('Weanling Input'!$E$24*F45/1000)*'Weanling Input'!$F$12/1000) -> 3.46528 | F71: =(('Weanling Input'!$E$25*G45/1000)*'Weanling Input'!$F$12/1000) -> 6.9888 | G71: 12.20128
A72: Salt - 96% | C72: =(('Weanling Input'!$E$22*D46/1000)*'Weanling Input'!$F$12/1000) -> 0.10192 | D72: =('Weanling Input'!$E$23*E46/1000)*'Weanling Input'!$F$12/1000 -> 0.5096 | E72: =(('Weanling Input'!$E$24*F46/1000)*'Weanling Input'!$F$12/1000) -> 1.51606 | F72: =(('Weanling Input'!$E$25*G46/1000)*'Weanling Input'!$F$12/1000) -> 3.0576 | G72: 5.18518
A73: Phytase | C73: =(('Weanling Input'!$E$22*D47/1000)*'Weanling Input'!$F$12/1000) -> 0 | D73: =('Weanling Input'!$E$23*E47/1000)*'Weanling Input'!$F$12/1000 -> 0.0728 | E73: =(('Weanling Input'!$E$24*F47/1000)*'Weanling Input'!$F$12/1000) -> 0.21658 | F73: =(('Weanling Input'!$E$25*G47/1000)*'Weanling Input'!$F$12/1000) -> 0.4368 | G73: 0.72618
A74: L-Lysine HCL | C74: =(('Weanling Input'!$E$22*D48/1000)*'Weanling Input'!$F$12/1000) -> 0.01456 | D74: =('Weanling Input'!$E$23*E48/1000)*'Weanling Input'!$F$12/1000 -> 0 | E74: =(('Weanling Input'!$E$24*F48/1000)*'Weanling Input'!$F$12/1000) -> 0.43316 | F74: =(('Weanling Input'!$E$25*G48/1000)*'Weanling Input'!$F$12/1000) -> 0.8736 | G74: 1.32132
A75: L-Threonine | C75: =(('Weanling Input'!$E$22*D49/1000)*'Weanling Input'!$F$12/1000) -> 0 | D75: =('Weanling Input'!$E$23*E49/1000)*'Weanling Input'!$F$12/1000 -> 0 | E75: =(('Weanling Input'!$E$24*F49/1000)*'Weanling Input'!$F$12/1000) -> 0 | F75: =(('Weanling Input'!$E$25*G49/1000)*'Weanling Input'!$F$12/1000) -> 0 | G75: 0
A76: D,L-Methionine | C76: =(('Weanling Input'!$E$22*D50/1000)*'Weanling Input'!$F$12/1000) -> 0 | D76: =('Weanling Input'!$E$23*E50/1000)*'Weanling Input'!$F$12/1000 -> 0 | E76: =(('Weanling Input'!$E$24*F50/1000)*'Weanling Input'!$F$12/1000) -> 0 | F76: =(('Weanling Input'!$E$25*G50/1000)*'Weanling Input'!$F$12/1000) -> 0 | G76: 0
A77: Oats - Steam rolled | C77: =(('Weanling Input'!$E$22*D51/1000)*'Weanling Input'!$F$12/1000) -> 13.81744 | D77: =('Weanling Input'!$E$23*E51/1000)*'Weanling Input'!$F$12/1000 -> 70.616 | E77: =(('Weanling Input'!$E$24*F51/1000)*'Weanling Input'!$F$12/1000) -> 0 | F77: =(('Weanling Input'!$E$25*G51/1000)*'Weanling Input'!$F$12/1000) -> 0 | G77: 84.43344
A78: Total Ration used (tonnes) | C78: =SUM(C59:C77) -> 29.12 | D78: =SUM(D59:D77) -> 145.6 | E78: =SUM(E59:E77) -> 433.16 | F78: =SUM(F59:F77) -> 873.6 | G78: =SUM(G59:G77) -> 1481.48
A82: Summary of Feed Ingredients Used for a Farrow-Weanling Operation
A83: Weanlings Sold | C83: ='Weanling Input'!F15 -> 35512
D84: Total | E84: Total
D85: per Year | E85: per Month
D86: (tonnes) | E86: (tonnes)
A87: =A5 -> Wheat | D87: =G59 -> 551.03412 | E87: =D87/12 -> 45.91951
A88: Barley | D88: 56.784 | E88: 4.732
A89: Corn | D89: 326.25684 | E89: 27.18807
A90: Soybean Meal - 47 % | D90: 307.3616 | E90: 25.61346667
A91: Canola Meal - 34% | D91: 0 | E91: 0
A92: Peas | D92: 0 | E92: 0
A93: =A11 -> Grower Micro Premix | D93: =G65 -> 7.4074 | E93: 0.6172833333
A94: Canola Oil | D94: 8.3174 | E94: 0.6931166667
A95: Whey Powder | D95: 52.04472 | E95: 4.33706
A96: Fish Meal | D96: 51.86272 | E96: 4.321893333
A97: Plasma | D97: 1.71808 | E97: 0.1431733333
A98: Limestone | D98: 14.82572 | E98: 1.235476667
A99: Dical (16% Ca-21% P) | D99: 12.20128 | E99: 1.016773333
A100: Salt - 96% | D100: 5.18518 | E100: 0.4320983333
A101: Phytase | D101: 0.72618 | E101: 0.060515
A102: L-Lysine HCL | D102: 1.32132 | E102: 0.11011
A103: L-Threonine | D103: 0 | E103: 0
A104: D,L-Methionine | D104: 0 | E104: 0
A105: Oats - Steam rolled | D105: 84.43344 | E105: 7.03612
A106: Total Ration used (tonnes) | D106: =SUM(D87:D105) -> 1481.48 | E106: =SUM(E87:E105) -> 123.4566667

Sheet Feed-Summary
A3: Feed Requirement and Cost Summary
D5: Amount | F5: Price | H5: Ration Cost | J5: Your
B6: Pre starter 1 | D6: (kg) | F6: $ /tonne | H6: $ /tonne | J6: Cost
B7: ='Feed-Cost'!A5 -> Wheat | D7: =IF('Feed-Cost'!D33=0," ",'Feed-Cost'!D33) -> 106 | F7: =IF('Feed-Cost'!D33=0," ",'Feed-Cost'!E5) -> 370 | H7: =IF('Feed-Cost'!D33=0," ",ROUND((D7/1000)*F7,2)) -> 39.22
B8: ='Feed-Cost'!A6 -> Barley | D8: =IF('Feed-Cost'!D34=0," ",'Feed-Cost'!D34) ->  | F8: =IF('Feed-Cost'!D34=0," ",'Feed-Cost'!E6) ->  | H8: =IF('Feed-Cost'!D34=0," ",ROUND((D8/1000)*F8,2)) -> 
B9: ='Feed-Cost'!A7 -> Corn | D9: =IF('Feed-Cost'!D35=0," ",'Feed-Cost'!D35) ->  | F9: =IF('Feed-Cost'!D35=0," ",'Feed-Cost'!E7) ->  | H9: =IF('Feed-Cost'!D35=0," ",ROUND((D9/1000)*F9,2)) -> 
B10: ='Feed-Cost'!A8 -> Soybean Meal - 47 % | D10: =IF('Feed-Cost'!D36=0," ",'Feed-Cost'!D36) -> 120 | F10: =IF('Feed-Cost'!D36=0," ",'Feed-Cost'!E8) -> 665 | H10: =IF('Feed-Cost'!D36=0," ",ROUND((D10/1000)*F10,2)) -> 79.8
B11: ='Feed-Cost'!A9 -> Canola Meal - 34% | D11: =IF('Feed-Cost'!D37=0," ",'Feed-Cost'!D37) ->  | F11: =IF('Feed-Cost'!D37=0," ",'Feed-Cost'!E9) ->  | H11: =IF('Feed-Cost'!D37=0," ",ROUND((D11/1000)*F11,2)) -> 
B12: ='Feed-Cost'!A10 -> Peas | D12: =IF('Feed-Cost'!D38=0," ",'Feed-Cost'!D38) ->  | F12: =IF('Feed-Cost'!D38=0," ",'Feed-Cost'!E10) ->  | H12: =IF('Feed-Cost'!D38=0," ",ROUND((D12/1000)*F12,2)) -> 
B13: ='Feed-Cost'!A11 -> Grower Micro Premix | D13: =IF('Feed-Cost'!D39=0," ",'Feed-Cost'!D39) -> 5 | F13: =IF('Feed-Cost'!D39=0," ",'Feed-Cost'!E11) -> 6000 | H13: =IF('Feed-Cost'!D39=0," ",ROUND((D13/1000)*F13,2)) -> 30
B14: ='Feed-Cost'!A12 -> Canola Oil | D14: =IF('Feed-Cost'!D40=0," ",'Feed-Cost'!D40) -> 27 | F14: =IF('Feed-Cost'!D40=0," ",'Feed-Cost'!E12) -> 2400 | H14: =IF('Feed-Cost'!D40=0," ",ROUND((D14/1000)*F14,2)) -> 64.8
B15: ='Feed-Cost'!A13 -> Whey Powder | D15: =IF('Feed-Cost'!D41=0," ",'Feed-Cost'!D41) -> 121 | F15: =IF('Feed-Cost'!D41=0," ",'Feed-Cost'!E13) -> 1364.6 | H15: =IF('Feed-Cost'!D41=0," ",ROUND((D15/1000)*F15,2)) -> 165.12
B16: ='Feed-Cost'!A14 -> Fish Meal | D16: =IF('Feed-Cost'!D42=0," ",'Feed-Cost'!D42) -> 61 | F16: =IF('Feed-Cost'!D42=0," ",'Feed-Cost'!E14) -> 3364.4 | H16: =IF('Feed-Cost'!D42=0," ",ROUND((D16/1000)*F16,2)) -> 205.23
B17: ='Feed-Cost'!A15 -> Plasma | D17: =IF('Feed-Cost'!D43=0," ",'Feed-Cost'!D43) -> 59 | F17: =IF('Feed-Cost'!D43=0," ",'Feed-Cost'!E15) -> 6270 | H17: =IF('Feed-Cost'!D43=0," ",ROUND((D17/1000)*F17,2)) -> 369.93
B18: ='Feed-Cost'!A16 -> Limestone | D18: =IF('Feed-Cost'!D44=0," ",'Feed-Cost'!D44) -> 12.5 | F18: =IF('Feed-Cost'!D44=0," ",'Feed-Cost'!E16) -> 203.95 | H18: =IF('Feed-Cost'!D44=0," ",ROUND((D18/1000)*F18,2)) -> 2.55
B19: ='Feed-Cost'!A17 -> Dical (16% Ca-21% P) | D19: =IF('Feed-Cost'!D45=0," ",'Feed-Cost'!D45) -> 10 | F19: =IF('Feed-Cost'!D45=0," ",'Feed-Cost'!E17) -> 1544.23 | H19: =IF('Feed-Cost'!D45=0," ",ROUND((D19/1000)*F19,2)) -> 15.44
B20: ='Feed-Cost'!A18 -> Salt - 96% | D20: =IF('Feed-Cost'!D46=0," ",'Feed-Cost'!D46) -> 3.5 | F20: =IF('Feed-Cost'!D46=0," ",'Feed-Cost'!E18) -> 261.9 | H20: =IF('Feed-Cost'!D46=0," ",ROUND((D20/1000)*F20,2)) -> 0.92
B21: ='Feed-Cost'!A19 -> Phytase | D21: =IF('Feed-Cost'!D47=0," ",'Feed-Cost'!D47) ->  | F21: =IF('Feed-Cost'!D47=0," ",'Feed-Cost'!E19) ->  | H21: =IF('Feed-Cost'!D47=0," ",ROUND((D21/1000)*F21,2)) -> 
B22: ='Feed-Cost'!A20 -> L-Lysine HCL | D22: =IF('Feed-Cost'!D48=0," ",'Feed-Cost'!D48) -> 0.5 | F22: =IF('Feed-Cost'!D48=0," ",'Feed-Cost'!E20) -> 2248.5 | H22: =IF('Feed-Cost'!D48=0," ",ROUND((D22/1000)*F22,2)) -> 1.12
B23: ='Feed-Cost'!A21 -> L-Threonine | D23: =IF('Feed-Cost'!D49=0," ",'Feed-Cost'!D49) ->  | F23: =IF('Feed-Cost'!D49=0," ",'Feed-Cost'!E21) ->  | H23: =IF('Feed-Cost'!D49=0," ",ROUND((D23/1000)*F23,2)) -> 
B24: ='Feed-Cost'!A22 -> D,L-Methionine | D24: =IF('Feed-Cost'!D50=0," ",'Feed-Cost'!D50) ->  | F24: =IF('Feed-Cost'!D50=0," ",'Feed-Cost'!E22) ->  | H24: =IF('Feed-Cost'!D50=0," ",ROUND((D24/1000)*F24,2)) -> 
B25: ='Feed-Cost'!A23 -> Oats - Steam rolled | D25: =IF('Feed-Cost'!D51=0," ",'Feed-Cost'!D51) -> 474.5 | F25: =IF('Feed-Cost'!D51=0," ",'Feed-Cost'!E23) -> 375 | H25: =IF('Feed-Cost'!D51=0," ",ROUND((D25/1000)*F25,2)) -> 177.94
B26: Total Pre Starter 1 | D26: =SUM(D7:D25) -> 1000 | E26: kg | H26: =SUM(H7:H25) -> 1152.07
B27: Adjusted for weight loss (percentage) | F27: ='Feed-Cost'!$E$26 -> 1.25 | G27: % | H27: =H26+(F27*H26/100) -> 1166.470875
B28: Plus processing cost per tonne | F28: ='Feed-Cost'!$E$25 -> 10 | H28: =IF(H27=0,0,H27+F28) -> 1176.470875
B29: Plus Labour Cost | F29: ='Feed-Cost'!E27 -> 10 | H29: =H28+F29 -> 1186.470875
B31: Pre starter 2
B32: ='Feed-Cost'!A5 -> Wheat | D32: =IF('Feed-Cost'!E33=0," ",'Feed-Cost'!E33) -> 134.5 | F32: =IF('Feed-Cost'!E33=0," ",'Feed-Cost'!E5) -> 370 | H32: =IF('Feed-Cost'!E33=0," ",ROUND((D32/1000)*F32,2)) -> 49.77
B33: ='Feed-Cost'!A6 -> Barley | D33: =IF('Feed-Cost'!E34=0," ",'Feed-Cost'!E34) ->  | F33: =IF('Feed-Cost'!E34=0," ",'Feed-Cost'!E6) ->  | H33: =IF('Feed-Cost'!E34=0," ",ROUND((D33/1000)*F33,2)) -> 
B34: ='Feed-Cost'!A7 -> Corn | D34: =IF('Feed-Cost'!E35=0," ",'Feed-Cost'!E35) ->  | F34: =IF('Feed-Cost'!E35=0," ",'Feed-Cost'!E7) ->  | H34: =IF('Feed-Cost'!E35=0," ",ROUND((D34/1000)*F34,2)) -> 
B35: ='Feed-Cost'!A8 -> Soybean Meal - 47 % | D35: =IF('Feed-Cost'!E36=0," ",'Feed-Cost'!E36) -> 130 | F35: =IF('Feed-Cost'!E36=0," ",'Feed-Cost'!E8) -> 665 | H35: =IF('Feed-Cost'!E36=0," ",ROUND((D35/1000)*F35,2)) -> 86.45
B36: ='Feed-Cost'!A9 -> Canola Meal - 34% | D36: =IF('Feed-Cost'!E37=0," ",'Feed-Cost'!E37) ->  | F36: =IF('Feed-Cost'!E37=0," ",'Feed-Cost'!E9) ->  | H36: =IF('Feed-Cost'!E37=0," ",ROUND((D36/1000)*F36,2)) -> 
B37: ='Feed-Cost'!A10 -> Peas | D37: =IF('Feed-Cost'!E38=0," ",'Feed-Cost'!E38) ->  | F37: =IF('Feed-Cost'!E38=0," ",'Feed-Cost'!E10) ->  | H37: =IF('Feed-Cost'!E38=0," ",ROUND((D37/1000)*F37,2)) -> 
B38: ='Feed-Cost'!A11 -> Grower Micro Premix | D38: =IF('Feed-Cost'!E39=0," ",'Feed-Cost'!E39) -> 5 | F38: =IF('Feed-Cost'!E39=0," ",'Feed-Cost'!E11) -> 6000 | H38: =IF('Feed-Cost'!E39=0," ",ROUND((D38/1000)*F38,2)) -> 30
B39: ='Feed-Cost'!A12 -> Canola Oil | D39: =IF('Feed-Cost'!E40=0," ",'Feed-Cost'!E40) -> 19 | F39: =IF('Feed-Cost'!E40=0," ",'Feed-Cost'!E12) -> 2400 | H39: =IF('Feed-Cost'!E40=0," ",ROUND((D39/1000)*F39,2)) -> 45.6
B40: ='Feed-Cost'!A13 -> Whey Powder | D40: =IF('Feed-Cost'!E41=0," ",'Feed-Cost'!E41) -> 125 | F40: =IF('Feed-Cost'!E41=0," ",'Feed-Cost'!E13) -> 1364.6 | H40: =IF('Feed-Cost'!E41=0," ",ROUND((D40/1000)*F40,2)) -> 170.58
B41: ='Feed-Cost'!A14 -> Fish Meal | D41: =IF('Feed-Cost'!E42=0," ",'Feed-Cost'!E42) -> 75 | F41: =IF('Feed-Cost'!E42=0," ",'Feed-Cost'!E14) -> 3364.4 | H41: =IF('Feed-Cost'!E42=0," ",ROUND((D41/1000)*F41,2)) -> 252.33
B42: ='Feed-Cost'!A15 -> Plasma | D42: =IF('Feed-Cost'!E43=0," ",'Feed-Cost'!E43) ->  | F42: =IF('Feed-Cost'!E43=0," ",'Feed-Cost'!E15) ->  | H42: =IF('Feed-Cost'!E43=0," ",ROUND((D42/1000)*F42,2)) -> 
B43: ='Feed-Cost'!A16 -> Limestone | D43: =IF('Feed-Cost'!E44=0," ",'Feed-Cost'!E44) -> 12.5 | F43: =IF('Feed-Cost'!E44=0," ",'Feed-Cost'!E16) -> 203.95 | H43: =IF('Feed-Cost'!E44=0," ",ROUND((D43/1000)*F43,2)) -> 2.55
B44: ='Feed-Cost'!A17 -> Dical (16% Ca-21% P) | D44: =IF('Feed-Cost'!E45=0," ",'Feed-Cost'!E45) -> 10 | F44: =IF('Feed-Cost'!E45=0," ",'Feed-Cost'!E17) -> 1544.23 | H44: =IF('Feed-Cost'!E45=0," ",ROUND((D44/1000)*F44,2)) -> 15.44
B45: ='Feed-Cost'!A18 -> Salt - 96% | D45: =IF('Feed-Cost'!E46=0," ",'Feed-Cost'!E46) -> 3.5 | F45: =IF('Feed-Cost'!E46=0," ",'Feed-Cost'!E18) -> 261.9 | H45: =IF('Feed-Cost'!E46=0," ",ROUND((D45/1000)*F45,2)) -> 0.92
B46: ='Feed-Cost'!A19 -> Phytase | D46: =IF('Feed-Cost'!E47=0," ",'Feed-Cost'!E47) -> 0.5 | F46: =IF('Feed-Cost'!E47=0," ",'Feed-Cost'!E19) -> 14500 | H46: =IF('Feed-Cost'!E47=0," ",ROUND((D46/1000)*F46,2)) -> 7.25
B47: ='Feed-Cost'!A20 -> L-Lysine HCL | D47: =IF('Feed-Cost'!E48=0," ",'Feed-Cost'!E48) ->  | F47: =IF('Feed-Cost'!E48=0," ",'Feed-Cost'!E20) ->  | H47: =IF('Feed-Cost'!E48=0," ",ROUND((D47/1000)*F47,2)) -> 
B48: ='Feed-Cost'!A21 -> L-Threonine | D48: =IF('Feed-Cost'!E49=0," ",'Feed-Cost'!E49) ->  | F48: =IF('Feed-Cost'!E49=0," ",'Feed-Cost'!E21) ->  | H48: =IF('Feed-Cost'!E49=0," ",ROUND((D48/1000)*F48,2)) -> 
B49: ='Feed-Cost'!A22 -> D,L-Methionine | D49: =IF('Feed-Cost'!E50=0," ",'Feed-Cost'!E50) ->  | F49: =IF('Feed-Cost'!E50=0," ",'Feed-Cost'!E22) ->  | H49: =IF('Feed-Cost'!E50=0," ",ROUND((D49/1000)*F49,2)) -> 
B50: ='Feed-Cost'!A23 -> Oats - Steam rolled | D50: =IF('Feed-Cost'!E51=0," ",'Feed-Cost'!E51) -> 485 | F50: =IF('Feed-Cost'!E51=0," ",'Feed-Cost'!E23) -> 375 | H50: =IF('Feed-Cost'!E51=0," ",ROUND((D50/1000)*F50,2)) -> 181.88
B51: Total Pre Starter 2 | D51: =SUM(D32:D50) -> 1000 | E51: kg | H51: =SUM(H32:H50) -> 842.77
B52: Adjusted for weight loss (percentage) | F52: ='Feed-Cost'!$E$26 -> 1.25 | G52: % | H52: =H51+(F52*H51/100) -> 853.304625
B53: Plus processing cost per tonne | F53: ='Feed-Cost'!$E$25 -> 10 | H53: =IF(H52=0,0,H52+F53) -> 863.304625
B54: Plus Labour Cost | F54: ='Feed-Cost'!E27 -> 10 | H54: =H53+F54 -> 873.304625
B56: Starter 1
B57: ='Feed-Cost'!A5 -> Wheat | D57: =IF('Feed-Cost'!F33=0," ",'Feed-Cost'!F33) -> 405 | F57: =IF('Feed-Cost'!F33=0," ",'Feed-Cost'!E5) -> 370 | H57: =IF('Feed-Cost'!F33=0," ",ROUND((D57/1000)*F57,2)) -> 149.85
B58: ='Feed-Cost'!A6 -> Barley | D58: =IF('Feed-Cost'!F34=0," ",'Feed-Cost'!F34) ->  | F58: =IF('Feed-Cost'!F34=0," ",'Feed-Cost'!E6) ->  | H58: =IF('Feed-Cost'!F34=0," ",ROUND((D58/1000)*F58,2)) -> 
B59: ='Feed-Cost'!A7 -> Corn | D59: =IF('Feed-Cost'!F35=0," ",'Feed-Cost'!F35) -> 249 | F59: =IF('Feed-Cost'!F35=0," ",'Feed-Cost'!E7) -> 355 | H59: =IF('Feed-Cost'!F35=0," ",ROUND((D59/1000)*F59,2)) -> 88.4
B60: ='Feed-Cost'!A8 -> Soybean Meal - 47 % | D60: =IF('Feed-Cost'!F36=0," ",'Feed-Cost'!F36) -> 200 | F60: =IF('Feed-Cost'!F36=0," ",'Feed-Cost'!E8) -> 665 | H60: =IF('Feed-Cost'!F36=0," ",ROUND((D60/1000)*F60,2)) -> 133
B61: ='Feed-Cost'!A9 -> Canola Meal - 34% | D61: =IF('Feed-Cost'!F37=0," ",'Feed-Cost'!F37) ->  | F61: =IF('Feed-Cost'!F37=0," ",'Feed-Cost'!E9) ->  | H61: =IF('Feed-Cost'!F37=0," ",ROUND((D61/1000)*F61,2)) -> 
B62: ='Feed-Cost'!A10 -> Peas | D62: =IF('Feed-Cost'!F38=0," ",'Feed-Cost'!F38) ->  | F62: =IF('Feed-Cost'!F38=0," ",'Feed-Cost'!E10) ->  | H62: =IF('Feed-Cost'!F38=0," ",ROUND((D62/1000)*F62,2)) -> 
B63: ='Feed-Cost'!A11 -> Grower Micro Premix | D63: =IF('Feed-Cost'!F39=0," ",'Feed-Cost'!F39) -> 5 | F63: =IF('Feed-Cost'!F39=0," ",'Feed-Cost'!E11) -> 6000 | H63: =IF('Feed-Cost'!F39=0," ",ROUND((D63/1000)*F63,2)) -> 30
B64: ='Feed-Cost'!A12 -> Canola Oil | D64: =IF('Feed-Cost'!F40=0," ",'Feed-Cost'!F40) -> 11 | F64: =IF('Feed-Cost'!F40=0," ",'Feed-Cost'!E12) -> 2400 | H64: =IF('Feed-Cost'!F40=0," ",ROUND((D64/1000)*F64,2)) -> 26.4
B65: ='Feed-Cost'!A13 -> Whey Powder | D65: =IF('Feed-Cost'!F41=0," ",'Feed-Cost'!F41) -> 70 | F65: =IF('Feed-Cost'!F41=0," ",'Feed-Cost'!E13) -> 1364.6 | H65: =IF('Feed-Cost'!F41=0," ",ROUND((D65/1000)*F65,2)) -> 95.52
B66: ='Feed-Cost'!A14 -> Fish Meal | D66: =IF('Feed-Cost'!F42=0," ",'Feed-Cost'!F42) -> 40 | F66: =IF('Feed-Cost'!F42=0," ",'Feed-Cost'!E14) -> 3364.4 | H66: =IF('Feed-Cost'!F42=0," ",ROUND((D66/1000)*F66,2)) -> 134.58
B67: ='Feed-Cost'!A15 -> Plasma | D67: =IF('Feed-Cost'!F43=0," ",'Feed-Cost'!F43) ->  | F67: =IF('Feed-Cost'!F43=0," ",'Feed-Cost'!E15) ->  | H67: =IF('Feed-Cost'!F43=0," ",ROUND((D67/1000)*F67,2)) -> 
B68: ='Feed-Cost'!A16 -> Limestone | D68: =IF('Feed-Cost'!F44=0," ",'Feed-Cost'!F44) -> 7 | F68: =IF('Feed-Cost'!F44=0," ",'Feed-Cost'!E16) -> 203.95 | H68: =IF('Feed-Cost'!F44=0," ",ROUND((D68/1000)*F68,2)) -> 1.43
B69: ='Feed-Cost'!A17 -> Dical (16% Ca-21% P) | D69: =IF('Feed-Cost'!F45=0," ",'Feed-Cost'!F45) -> 8 | F69: =IF('Feed-Cost'!F45=0," ",'Feed-Cost'!E17) -> 1544.23 | H69: =IF('Feed-Cost'!F45=0," ",ROUND((D69/1000)*F69,2)) -> 12.35
B70: ='Feed-Cost'!A18 -> Salt - 96% | D70: =IF('Feed-Cost'!F46=0," ",'Feed-Cost'!F46) -> 3.5 | F70: =IF('Feed-Cost'!F46=0," ",'Feed-Cost'!E18) -> 261.9 | H70: =IF('Feed-Cost'!F46=0," ",ROUND((D70/1000)*F70,2)) -> 0.92
B71: ='Feed-Cost'!A19 -> Phytase | D71: =IF('Feed-Cost'!F47=0," ",'Feed-Cost'!F47) -> 0.5 | F71: =IF('Feed-Cost'!F47=0," ",'Feed-Cost'!E19) -> 14500 | H71: =IF('Feed-Cost'!F47=0," ",ROUND((D71/1000)*F71,2)) -> 7.25
B72: ='Feed-Cost'!A20 -> L-Lysine HCL | D72: =IF('Feed-Cost'!F48=0," ",'Feed-Cost'!F48) -> 1 | F72: =IF('Feed-Cost'!F48=0," ",'Feed-Cost'!E20) -> 2248.5 | H72: =IF('Feed-Cost'!F48=0," ",ROUND((D72/1000)*F72,2)) -> 2.25
B73: ='Feed-Cost'!A21 -> L-Threonine | D73: =IF('Feed-Cost'!F49=0," ",'Feed-Cost'!F49) ->  | F73: =IF('Feed-Cost'!F49=0," ",'Feed-Cost'!E21) ->  | H73: =IF('Feed-Cost'!F49=0," ",ROUND((D73/1000)*F73,2)) -> 
B74: ='Feed-Cost'!A22 -> D,L-Methionine | D74: =IF('Feed-Cost'!F50=0," ",'Feed-Cost'!F50) ->  | F74: =IF('Feed-Cost'!F50=0," ",'Feed-Cost'!E22) ->  | H74: =IF('Feed-Cost'!F50=0," ",ROUND((D74/1000)*F74,2)) -> 
B75: ='Feed-Cost'!A23 -> Oats - Steam rolled | D75: =IF('Feed-Cost'!F51=0," ",'Feed-Cost'!F51) ->  | F75: =IF('Feed-Cost'!F51=0," ",'Feed-Cost'!E23) ->  | H75: =IF('Feed-Cost'!F51=0," ",ROUND((D75/1000)*F75,2)) -> 
B76: Total Starter 1 | D76: =SUM(D57:D75) -> 1000 | E76: kg | H76: =SUM(H57:H75) -> 681.95
B77: Adjusted for weight loss (percentage) | F77: ='Feed-Cost'!$E$26 -> 1.25 | G77: % | H77: =H76+(F77*H76/100) -> 690.474375
B78: Plus processing cost per tonne | F78: ='Feed-Cost'!$E$25 -> 10 | H78: =IF(H77=0,0,H77+F78) -> 700.474375
B79: Plus Labour Cost | F79: ='Feed-Cost'!E27 -> 10 | H79: =H78+F79 -> 710.474375
B82: Starter 2
B83: ='Feed-Cost'!A5 -> Wheat | D83: =IF('Feed-Cost'!G33=0," ",'Feed-Cost'!G33) -> 404 | F83: =IF('Feed-Cost'!G33=0," ",'Feed-Cost'!E5) -> 370 | H83: =IF('Feed-Cost'!G33=0," ",ROUND((D83/1000)*F83,2)) -> 149.48
B84: ='Feed-Cost'!A6 -> Barley | D84: =IF('Feed-Cost'!G34=0," ",'Feed-Cost'!G34) -> 65 | F84: =IF('Feed-Cost'!G34=0," ",'Feed-Cost'!E6) -> 320 | H84: =IF('Feed-Cost'!G34=0," ",ROUND((D84/1000)*F84,2)) -> 20.8
B85: ='Feed-Cost'!A7 -> Corn | D85: =IF('Feed-Cost'!G35=0," ",'Feed-Cost'!G35) -> 250 | F85: =IF('Feed-Cost'!G35=0," ",'Feed-Cost'!E7) -> 355 | H85: =IF('Feed-Cost'!G35=0," ",ROUND((D85/1000)*F85,2)) -> 88.75
B86: ='Feed-Cost'!A8 -> Soybean Meal - 47 % | D86: =IF('Feed-Cost'!G36=0," ",'Feed-Cost'!G36) -> 227 | F86: =IF('Feed-Cost'!G36=0," ",'Feed-Cost'!E8) -> 665 | H86: =IF('Feed-Cost'!G36=0," ",ROUND((D86/1000)*F86,2)) -> 150.96
B87: ='Feed-Cost'!A9 -> Canola Meal - 34% | D87: =IF('Feed-Cost'!G37=0," ",'Feed-Cost'!G37) ->  | F87: =IF('Feed-Cost'!G37=0," ",'Feed-Cost'!E9) ->  | H87: =IF('Feed-Cost'!G37=0," ",ROUND((D87/1000)*F87,2)) -> 
B88: ='Feed-Cost'!A10 -> Peas | D88: =IF('Feed-Cost'!G38=0," ",'Feed-Cost'!G38) ->  | F88: =IF('Feed-Cost'!G38=0," ",'Feed-Cost'!E10) ->  | H88: =IF('Feed-Cost'!G38=0," ",ROUND((D88/1000)*F88,2)) -> 
B89: ='Feed-Cost'!A11 -> Grower Micro Premix | D89: =IF('Feed-Cost'!G39=0," ",'Feed-Cost'!G39) -> 5 | F89: =IF('Feed-Cost'!G39=0," ",'Feed-Cost'!E11) -> 6000 | H89: =IF('Feed-Cost'!G39=0," ",ROUND((D89/1000)*F89,2)) -> 30
B90: ='Feed-Cost'!A12 -> Canola Oil | D90: =IF('Feed-Cost'!G40=0," ",'Feed-Cost'!G40) ->  | F90: =IF('Feed-Cost'!G40=0," ",'Feed-Cost'!E12) ->  | H90: =IF('Feed-Cost'!G40=0," ",ROUND((D90/1000)*F90,2)) -> 
B91: ='Feed-Cost'!A13 -> Whey Powder | D91: =IF('Feed-Cost'!G41=0," ",'Feed-Cost'!G41) ->  | F91: =IF('Feed-Cost'!G41=0," ",'Feed-Cost'!E13) ->  | H91: =IF('Feed-Cost'!G41=0," ",ROUND((D91/1000)*F91,2)) -> 
B92: ='Feed-Cost'!A14 -> Fish Meal | D92: =IF('Feed-Cost'!G42=0," ",'Feed-Cost'!G42) -> 25 | F92: =IF('Feed-Cost'!G42=0," ",'Feed-Cost'!E14) -> 3364.4 | H92: =IF('Feed-Cost'!G42=0," ",ROUND((D92/1000)*F92,2)) -> 84.11
B93: ='Feed-Cost'!A15 -> Plasma | D93: =IF('Feed-Cost'!G43=0," ",'Feed-Cost'!G43) ->  | F93: =IF('Feed-Cost'!G43=0," ",'Feed-Cost'!E15) ->  | H93: =IF('Feed-Cost'!G43=0," ",ROUND((D93/1000)*F93,2)) -> 
B94: ='Feed-Cost'!A16 -> Limestone | D94: =IF('Feed-Cost'!G44=0," ",'Feed-Cost'!G44) -> 11 | F94: =IF('Feed-Cost'!G44=0," ",'Feed-Cost'!E16) -> 203.95 | H94: =IF('Feed-Cost'!G44=0," ",ROUND((D94/1000)*F94,2)) -> 2.24
B95: ='Feed-Cost'!A17 -> Dical (16% Ca-21% P) | D95: =IF('Feed-Cost'!G45=0," ",'Feed-Cost'!G45) -> 8 | F95: =IF('Feed-Cost'!G45=0," ",'Feed-Cost'!E17) -> 1544.23 | H95: =IF('Feed-Cost'!G45=0," ",ROUND((D95/1000)*F95,2)) -> 12.35
B96: ='Feed-Cost'!A18 -> Salt - 96% | D96: =IF('Feed-Cost'!G46=0," ",'Feed-Cost'!G46) -> 3.5 | F96: =IF('Feed-Cost'!G46=0," ",'Feed-Cost'!E18) -> 261.9 | H96: =IF('Feed-Cost'!G46=0," ",ROUND((D96/1000)*F96,2)) -> 0.92
B97: ='Feed-Cost'!A19 -> Phytase | D97: =IF('Feed-Cost'!G47=0," ",'Feed-Cost'!G47) -> 0.5 | F97: =IF('Feed-Cost'!G47=0," ",'Feed-Cost'!E19) -> 14500 | H97: =IF('Feed-Cost'!G47=0," ",ROUND((D97/1000)*F97,2)) -> 7.25
B98: ='Feed-Cost'!A20 -> L-Lysine HCL | D98: =IF('Feed-Cost'!G48=0," ",'Feed-Cost'!G48) -> 1 | F98: =IF('Feed-Cost'!G48=0," ",'Feed-Cost'!E20) -> 2248.5 | H98: =IF('Feed-Cost'!G48=0," ",ROUND((D98/1000)*F98,2)) -> 2.25
B99: ='Feed-Cost'!A21 -> L-Threonine | D99: =IF('Feed-Cost'!G49=0," ",'Feed-Cost'!G49) ->  | F99: =IF('Feed-Cost'!G49=0," ",'Feed-Cost'!E21) ->  | H99: =IF('Feed-Cost'!G49=0," ",ROUND((D99/1000)*F99,2)) -> 
B100: ='Feed-Cost'!A22 -> D,L-Methionine | D100: =IF('Feed-Cost'!G50=0," ",'Feed-Cost'!G50) ->  | F100: =IF('Feed-Cost'!G50=0," ",'Feed-Cost'!E22) ->  | H100: =IF('Feed-Cost'!G50=0," ",ROUND((D100/1000)*F100,2)) -> 
B101: ='Feed-Cost'!A23 -> Oats - Steam rolled | D101: =IF('Feed-Cost'!G51=0," ",'Feed-Cost'!G51) ->  | F101: =IF('Feed-Cost'!G51=0," ",'Feed-Cost'!E23) ->  | H101: =IF('Feed-Cost'!G51=0," ",ROUND((D101/1000)*F101,2)) -> 
B102: Total Starter 2 | D102: =SUM(D83:D101) -> 1000 | E102: kg | H102: =SUM(H83:H101) -> 549.11
B103: Adjusted for weight loss (percentage) | F103: ='Feed-Cost'!$E$26 -> 1.25 | G103: % | H103: =H102+(F103*H102/100) -> 555.973875
B104: Plus processing cost per tonne | F104: ='Feed-Cost'!$E$25 -> 10 | H104: =IF(H103=0,0,H103+F104) -> 565.973875
B105: Plus Labour Cost | F105: ='Feed-Cost'!E27 -> 10 | H105: =H104+F105 -> 575.973875

Sheet Weaner-Worksheet
B2: Weaner Pig (Nursery) 6-26kg Production Costs Worksheet
A4: A. Operating Costs
A6: 1. Feed Requirements and Costs | I6: Your Cost
B8: 1.01 Pre starter 1 - Purchased Feed
D9: ='Weanling Input'!E22 -> 0.8 | F9: kg ration/pig
C10: x | D10: ='Weanling Input'!G22 -> 2000 | F10: /tonne
C11: ÷ | D11: 1000 | F11: kg/tonne
C12: = | D12: =ROUND(((D9*D10/1000)),2) -> 1.6 | F12: /pig sold
B13: 1.011 Pre starter 1 - Home-Mixed Feed
D14: ='Weanling Input'!E22 -> 0.8 | F14: kg ration/pig
C15: x | D15: ='Feed-Summary'!H29 -> 1186.470875 | F15: /tonne
C16: ÷ | D16: 1000 | F16: kg/tonne
C17: = | D17: =ROUND(((D14*D15/1000)),2) -> 0.95 | F17: /pig sold
B19: 1.02 Pre starter 2 - Purchased Feed
D20: ='Weanling Input'!E23 -> 4 | F20: kg ration/pig
C21: x | D21: ='Weanling Input'!G23 -> 1611.5 | F21: /tonne
C22: ÷ | D22: 1000 | F22: kg/tonne
C23: = | D23: =ROUND((D20*D21/1000),2) -> 6.45 | F23: /pig sold
B24: 1.021 Pre starter 2 - Home-Mixed Feed
D25: ='Weanling Input'!E23 -> 4 | F25: kg ration/pig
C26: x | D26: ='Feed-Summary'!H54 -> 873.304625 | F26: /tonne
C27: ÷ | D27: 1000 | F27: kg/tonne
C28: = | D28: =ROUND((D25*D26/1000),2) -> 3.49 | F28: /pig sold
B30: 1.03 Starter 1 - Purchased Feed
D31: ='Weanling Input'!E24 -> 11.9 | F31: kg ration/pig
C32: x | D32: ='Weanling Input'!G24 -> 1199 | F32: /tonne
C33: ÷ | D33: 1000 | F33: kg/tonne
C34: = | D34: =ROUND((D31*D32/1000),2) -> 14.27 | F34: /pig sold
B35: 1.031 Starter 1 - Home-Mixed Feed
D36: ='Weanling Input'!E24 -> 11.9 | F36: kg ration/pig
C37: x | D37: ='Feed-Summary'!H79 -> 710.474375 | F37: /tonne
C38: ÷ | D38: 1000 | F38: kg/tonne
C39: = | D39: =ROUND((D36*D37/1000),2) -> 8.45 | F39: /pig sold
B41: 1.04 Starter 2 - Purchased Feed
D42: ='Weanling Input'!E25 -> 24 | F42: kg ration/pig
C43: x | D43: ='Weanling Input'!G25 -> 808.65 | F43: /tonne
C44: ÷ | D44: 1000 | F44: kg/tonne
C45: = | D45: =ROUND((D42*D43/1000),2) -> 19.41 | F45: /pig sold
B46: 1.041 Starter 2 - Home-Mixed Feed
D47: ='Weanling Input'!E25 -> 24 | F47: kg ration/pig
C48: x | D48: ='Feed-Summary'!H105 -> 575.973875 | F48: /tonne
C49: ÷ | D49: 1000 | F49: kg/tonne
C50: = | D50: =ROUND((D47*D48/1000),2) -> 13.82 | F50: /pig sold
A52: 2. Other Operating Costs
B53: 2.01 Weanling Purchase
D54: ='Weanling Input'!F16 -> 87 | F54: $/cwt average market price
C55: x | D55: ='Weanling Input'!F17 -> 55 | F55: % of mkt price weanling formula factor
D56: =D54*D55/100 -> 47.85 | F56: purchase cost
B58: 2.02 Veterinary Medicine & Supplies
D59: ='Weanling Input'!G93 -> 2000 | F59: professional services
C60: + | D60: ='Weanling Input'!G94 -> 98000 | F60: medication
C61: ÷ | D61: ='Weanling Input'!$F$15 -> 35512 | F61: pigs sold
C62: = | D62: =ROUND((D59+D60)/D61,5) -> 2.81595 | F62: /pig sold
B64: 2.03 Maintenance & Repairs
D65: ='Weanling Input'!H65 -> 1192200 | F65: building & equipment cost
C66: x | D66: ='Weanling Input'!G96 -> 0.55 | F66: % year repair & maintenance
C67: ÷ | D67: ='Weanling Input'!$F$15 -> 35512 | F67: pigs sold
C68: = | D68: =ROUND((D65*D66/100/D67),2) -> 0.18 | F68: /pig sold
B70: 2.04 Hydro & Propane
D71: =SUM('Weanling Input'!G98*'Weanling Input'!G99) -> 18648 | F71: hydro
C72: + | D72: =SUM('Weanling Input'!G100*'Weanling Input'!G101) -> 37500 | F72: propane
C73: ÷ | D73: ='Weanling Input'!$F$15 -> 35512 | F73: pigs sold
C74: = | D74: =ROUND((D71+D72)/D73,5) -> 1.5811 | F74: /pig sold
B76: 2.05 Insurance
D77: ='Weanling Input'!H65 -> 1192200 | F77: investment
C78: x | D78: ='Weanling Input'!G103 -> 0.65 | F78: rate/$100
C79: ÷ | D79: 100 | F79: /$100 capital
C80: ÷ | D80: ='Weanling Input'!$F$15 -> 35512 | F80: pigs sold
C81: = | D81: =ROUND(((D77*D78)/100)/D80,2) -> 0.22 | F81: /pig sold
D83: ='Weanling Input'!F10*'Weanling Input'!G107 -> 452400 | F83: market hogs value
C84: x | D84: ='Weanling Input'!G104 -> 0.65 | F84: /$100 capital invested
C85: ÷ | D85: ='Weanling Input'!$F$15 -> 35512 | F85: pigs sold
C86: = | D86: =ROUND(((D83*D84)/100)/D85,2) -> 0.08 | F86: /pig sold
D88: ='Weanling Input'!G106 -> 45 | F88: business interruption coverage/feeder
C89: x | D89: ='Weanling Input'!F10 -> 5200 | F89: feeders
C90: x | D90: ='Weanling Input'!G105 -> 0.65 | F90: /$100 capital invested
C91: ÷ | D91: ='Weanling Input'!$F$15 -> 35512 | F91: pigs sold
C92: = | D92: =ROUND(((D88*D89)*D90/100)/D91,2) -> 0.04 | F92: /pig sold
B94: Total | C94: = | D94: =D81+D86+D92 -> 0.34 | F94: /pig sold
B96: 2.06 Manure Costs
B97: Haulage | D97: ='Weanling Input'!G110 -> 2.4 | F97: litres/pig/day
C98: x | D98: 365 | F98: days
C99: x | D99: ='Weanling Input'!G111 -> 0.0029 | F99: /litre
C100: x | D100: ='Weanling Input'!F10 -> 5200 | F100: pig places
C101: ÷ | D101: ='Weanling Input'!F15 -> 35512 | F101: pigs sold
C102: = | D102: =ROUND(D97*D99*D98*D100/D101,2) -> 0.37 | F102: /pig sold
B103: Estimated Nutrient Value
D104: ='Weanling Input'!G110 -> 2.4 | F104: litres/pig/day
C105: x | D105: 365 | F105: days/year
C106: x | D106: ='Weanling Input'!F10 -> 5200 | F106: average inventory of pigs
C107: ÷ | D107: 1000
C108: = | D108: =SUM((D104*D105*D106)/1000) -> 4555.2 | F108: # of 1000 litres of manure
C109: Nitrogen
D110: ='Weanling Input'!F120 -> 2.62 | F110: kg per 1000 litres
C111: x | D111: =D108 -> 4555.2 | F111: # of 1000 litres of manure
C112: x | D112: ='Weanling Input'!H120 -> 60 | F112: % nutrient value recovery
C113: ÷ | D113: 2.2045855 | F113: lbs per kg
C114: x | D114: ='Weanling Input'!G120 -> 0.77 | F114: fertilizer value per lb.
C115: ÷ | D115: ='Weanling Input'!F15 -> 35512 | F115: pigs sold
C116: = | D116: =SUM((D110*D111*(D112/100)/D113)*D114)/D115 -> 0.07042853231 | F116: estimated nutrient value / pig sold
C117: Phosphate
D118: ='Weanling Input'!F121 -> 0.59 | F118: kg per 1000 litres
C119: x | D119: =D108 -> 4555.2 | F119: # of 1000 litres of manure
C120: x | D120: ='Weanling Input'!H121 -> 0 | F120: % nutrient value recovery
C121: ÷ | D121: 2.2045855 | F121: lbs per kg
C122: x | D122: ='Weanling Input'!G121 -> 0.89 | F122: fertilizer value per lb.
C123: ÷ | D123: ='Weanling Input'!F15 -> 35512 | F123: pigs sold
C124: = | D124: =SUM((D118*D119*(D120/100)/D121)*D122)/D123 -> 0 | F124: estimated nutrient value / pig sold
C125: Potassium
D126: ='Weanling Input'!F122 -> 1.37 | F126: kg per 1000 litres
C127: x | D127: =D108 -> 4555.2 | F127: # of 1000 litres of manure
C128: x | D128: ='Weanling Input'!H122 -> 0 | F128: % nutrient value recovery
C129: ÷ | D129: 2.2045855 | F129: lbs per kg
C130: x | D130: ='Weanling Input'!G122 -> 0.6 | F130: fertilizer value per lb.
C131: ÷ | D131: ='Weanling Input'!F15 -> 35512 | F131: pigs sold
C132: = | D132: =SUM((D126*D127*(D128/100)/D129)*D130)/D131 -> 0 | F132: estimated nutrient value / pig sold
B134: Odour control & Mgmt Fees
D135: ='Weanling Input'!G114+'Weanling Input'!G115 -> 3000 | F135: total cost
C136: ÷ | D136: ='Weanling Input'!F15 -> 35512 | F136: pigs sold
C137: = | D137: =D135/D136 -> 0.08447848615 | F137: /pig sold
B139: Total | C139: = | D139: =D102+D137-(D116+D124+D132) -> 0.3840499538 | F139: /pig sold
B141: 2.07 Office Supplies
D142: ='Weanling Input'!G124 -> 0.3 | F142: /pig place
D143: ='Weanling Input'!F10 -> 5200 | F143: pig places
C144: ÷ | D144: ='Weanling Input'!$F$15 -> 35512 | F144: pigs sold
C145: = | D145: =ROUND(D142*D143/D144,5) -> 0.04393 | F145: /pig sold
B147: 2.08 Levy, Marketing & Transportation
D148: ='Weanling Input'!G128 -> 3.5 | F148: trucking in
C149: + | D149: ='Weanling Input'!G130 -> 0.19 | F149: council levy
C150: + | D150: ='Weanling Input'!G133 -> 0.05 | F150: insurance
C151: = | D151: =D148+D149+D150 -> 3.74 | F151: /pig sold
B153: 2.09 Property Taxes
D154: ='Weanling Input'!G137 -> 10000 | F154: total taxes
C155: ÷ | D155: ='Weanling Input'!$F$15 -> 35512 | F155: pigs sold
C156: = | D156: =ROUND(D154/D155,5) -> 0.28159 | F156: /pig sold
D158: ='Weanling Input'!G138 -> 10 | F158: taxes on land
C159: x | D159: ='Weanling Input'!G142 -> 0 | F159: acres
C160: ÷ | D160: ='Weanling Input'!F15 -> 35512 | F160: pigs sold
C161: = | D161: =(D158*D159)/D160 -> 0 | F161: /pig sold
B163: Total | D163: =D156+D161 -> 0.28159 | F163: /pig sold
B165: 2.10 Interest on Operating Cost - Purchased Feed:
D166: ='Weaner-Summary'!E14 -> 47.85 | F166: weaner cost
C167: + | D167: ='Weaner-Summary'!$E$11+SUM('Weaner-Summary'!$E$15:$E$22) -> 51.09661995 | F167: subtotal operating
C168: ÷ | D168: 2 | F168: average
C169: x | D169: ='Weanling Input'!F36 -> 52 | F169: days per turn
C170: ÷ | D170: 365 | F170: days per year
C171: x | D171: ='Weanling Input'!G146 -> 8.5 | F171: % operating interest
C172: = | D172: =ROUND((((D166+(D167/D168))*D169)/D170)*D171/100,2) -> 0.89 | F172: /pig sold
B173: Interest on Operating Cost - Home Mixed Feed:
D174: =D166 -> 47.85 | F174: weaner cost
C175: + | D175: ='Weaner-Summary'!$H$11+SUM('Weaner-Summary'!$H$15:$H$22) -> 36.07661995 | F175: subtotal operating
C176: ÷ | D176: 2 | F176: average
C177: x | D177: =D169 -> 52 | F177: days per turn
C178: ÷ | D178: 365 | F178: days per year
C179: x | D179: =D171 -> 8.5 | F179: % operating interest
C180: = | D180: =ROUND((((D174+(D175/D176))*D177)/D178)*D179/100,2) -> 0.8 | F180: /pig sold
A182: B. Fixed Costs
A184: 3. Depreciation: | D184: Original cost - Salvage Value
D185: Useful Life
B187: 3.01 Buildings - not including feedmill
D188: ='Weanling Input'!$H$54+'Weanling Input'!$H$74-'Weanling Input'!H53 -> 697200 | F188: building cost (including manure storage)
C189: - | D189: ='Weanling Input'!$G$85/100*($D$188-'Weanling Input'!$H$74) -> 61920 | F189: salvage value (building only)
C190: ÷ | D190: ='Weanling Input'!G82 -> 25 | F190: years useful life
C191: ÷ | D191: ='Weanling Input'!$F$15 -> 35512 | F191: pigs sold
C192: = | D192: =ROUND(((D188-D189)/D190)/D191,2) -> 0.72 | F192: /pig sold
B193: 3.011 Buildings - including feedmill
D194: ='Weanling Input'!$H$54+'Weanling Input'!$H$74 -> 742200 | F194: building cost (including manure storage)
C195: - | D195: ='Weanling Input'!$G$85/100*($D$194-'Weanling Input'!$H$74) -> 66420 | F195: salvage value (building only)
C196: ÷ | D196: ='Weanling Input'!G82 -> 25 | F196: years useful life
C197: ÷ | D197: ='Weanling Input'!$F$15 -> 35512 | F197: pigs sold
C198: = | D198: =ROUND(((D194-D195)/D196)/D197,2) -> 0.76 | F198: /pig sold
B200: 3.02 Equipment - not including feedmill
D201: ='Weanling Input'!$H$63-'Weanling Input'!H62 -> 468000 | F201: equipment cost
C202: - | D202: ='Weanling Input'!$G$86/100*$D$201 -> 46800 | F202: salvage value
C203: ÷ | D203: ='Weanling Input'!G83 -> 10 | F203: years useful life
C204: ÷ | D204: ='Weanling Input'!$F$15 -> 35512 | F204: pigs sold
C205: = | D205: =ROUND(((D201-D202)/D203)/D204,2) -> 1.19 | F205: /pig sold
B206: 3.021 Equipment - including feedmill
D207: ='Weanling Input'!$H$63 -> 528000 | F207: equipment cost
C208: - | D208: ='Weanling Input'!$G$86/100*$D$201 -> 46800 | F208: salvage value
C209: ÷ | D209: ='Weanling Input'!G83 -> 10 | F209: years useful life
C210: ÷ | D210: ='Weanling Input'!$F$15 -> 35512 | F210: pigs sold
C211: = | D211: =ROUND(((D207-D208)/D209)/D210,2) -> 1.36 | F211: /pig sold
A214: 4. Investment: | D214: Original Cost + Salvage Value x Investment Rate
D215: 2
B216: 4.01 Land for barn site
D217: ='Weanling Input'!H68 -> 110000 | F217: land value
C218: + | D218: ='Weanling Input'!H72 -> 36000 | F218: site preparation
C219: x | D219: ='Weanling Input'!$G$88 -> 2.75 | F219: % investment rate
C220: ÷ | D220: ='Weanling Input'!$F$15 -> 35512 | F220: pigs sold
C221: = | D221: =((D217+D218)*D219/100)/D220 -> 0.113060374 | F221: /pig sold
C222: Land for manure application
D223: ='Weanling Input'!H69 -> 0 | F223: land investment
C224: x | D224: =D219 -> 2.75 | F224: % investment rate
C225: ÷ | D225: =D220 -> 35512 | F225: pigs sold
C226: = | D226: =((D222+D223)*D224/100)/D225 -> 0 | F226: /pig sold
B227: Total | D227: =D221+D226 -> 0.113060374 | F227: /pig sold
B229: 4.02 Buildings - not including feedmill
D230: ='Weanling Input'!$H$54+'Weanling Input'!$H$74-'Weanling Input'!H53 -> 697200 | F230: building cost (including manure storage)
C231: + | D231: =D189 -> 61920 | F231: salvage value (building only)
... 38 more rows

Sheet Ingredient-Summary
A2: Summary of Home Mixed Feed Ingredients Used
D4: Total pigs sold | F4: ='Weanling Input'!F15 -> 35512
E6: Total | F6: Total | G6: Total | H6: Total
E7: per Year | F7: per Month | G7: per Pig | H7: per Pig
E8: (tonnes) | F8: (tonnes) | G8: (kgs) | H8: (lbs)
B9: ='Feed-Cost'!A5 -> Wheat | E9: ='Feed-Cost'!D87 -> 551.03412 | F9: =E9/12 -> 45.91951 | G9: =E9/$F$4*1000 -> 15.51684276 | H9: =G9*2.2046 -> 34.20843154
B10: ='Feed-Cost'!A6 -> Barley | E10: ='Feed-Cost'!D88 -> 56.784 | F10: 4.732 | G10: 1.599008786 | H10: =G10*2.2046 -> 3.525174769
B11: ='Feed-Cost'!A7 -> Corn | E11: ='Feed-Cost'!D89 -> 326.25684 | F11: 27.18807 | G11: 9.187227979 | H11: 20.2541628
B12: ='Feed-Cost'!A8 -> Soybean Meal - 47 % | E12: ='Feed-Cost'!D90 -> 307.3616 | F12: 25.61346667 | G12: 8.655147556 | H12: 19.0811383
B13: ='Feed-Cost'!A9 -> Canola Meal - 34% | E13: ='Feed-Cost'!D91 -> 0 | F13: 0 | G13: 0 | H13: 0
B14: ='Feed-Cost'!A10 -> Peas | E14: ='Feed-Cost'!D92 -> 0 | F14: 0 | G14: 0 | H14: 0
B15: ='Feed-Cost'!A11 -> Grower Micro Premix | E15: ='Feed-Cost'!D93 -> 7.4074 | F15: 0.6172833333 | G15: 0.2085886461 | H15: 0.4598545292
B16: ='Feed-Cost'!A12 -> Canola Oil | E16: ='Feed-Cost'!D94 -> 8.3174 | F16: 0.6931166667 | G16: 0.2342137869 | H16: 0.5163477146
B17: ='Feed-Cost'!A13 -> Whey Powder | E17: ='Feed-Cost'!D95 -> 52.04472 | F17: 4.33706 | G17: 1.465553052 | H17: 3.23095826
B18: ='Feed-Cost'!A14 -> Fish Meal | E18: ='Feed-Cost'!D96 -> 51.86272 | F18: 4.321893333 | G18: 1.460428024 | H18: 3.219659622
B19: ='Feed-Cost'!A15 -> Plasma | E19: ='Feed-Cost'!D97 -> 1.71808 | F19: 0.1431733333 | G19: 0.04838026583 | H19: 0.106659134
B20: ='Feed-Cost'!A16 -> Limestone | E20: ='Feed-Cost'!D98 -> 14.82572 | F20: 1.235476667 | G20: 0.4174847939 | H20: 0.9203869766
B21: ='Feed-Cost'!A17 -> Dical (16% Ca-21% P) | E21: ='Feed-Cost'!D99 -> 12.20128 | F21: 1.016773333 | G21: 0.3435818878 | H21: 0.7574606299
B22: ='Feed-Cost'!A18 -> Salt - 96% | E22: ='Feed-Cost'!D100 -> 5.18518 | F22: 0.4320983333 | G22: 0.1460120523 | H22: 0.3218981704
B23: ='Feed-Cost'!A19 -> Phytase | E23: ='Feed-Cost'!D101 -> 0.72618 | F23: 0.060515 | G23: 0.02044886236 | H23: 0.04508156195
B24: ='Feed-Cost'!A20 -> L-Lysine HCL | E24: ='Feed-Cost'!D102 -> 1.32132 | F24: 0.11011 | G24: 0.03720770444 | H24: 0.0820281052
B25: ='Feed-Cost'!A21 -> L-Threonine | E25: ='Feed-Cost'!D103 -> 0 | F25: 0 | G25: 0 | H25: 0
B26: ='Feed-Cost'!A22 -> D,L-Methionine | E26: ='Feed-Cost'!D104 -> 0 | F26: 0 | G26: 0 | H26: 0
B27: ='Feed-Cost'!A23 -> Oats - Steam rolled | E27: ='Feed-Cost'!D105 -> 84.43344 | F27: 7.03612 | G27: 2.377603064 | H27: 5.241663714
B28: Total | E28: =SUM(E9:E27) -> 1481.48 | F28: =SUM(F9:F27) -> 123.4566667 | G28: =SUM(G9:G27) -> 41.71772922 | H28: =SUM(H9:H27) -> 91.97090583
A30: Summary of Purchased Feed Ingredients Used
E32: Total per | F32: Total | G32: Total | H32: Total per
E33: Pig Mkt | F33: per Year | G33: per Month | H33: Pig Mkt
E34: (kgs) | F34: (tonnes) | G34: (tonnes) | H34: (lbs)
B35: Pre starter 1 | E35: =F35/$F$4*1000 -> 0.8200045055 | F35: =IF('Weanling Input'!G22<=0,0,'Weanling Input'!E22*'Weanling Input'!F12/1000) -> 29.12 | G35: =F35/12 -> 2.426666667 | H35: =E35*2.2046 -> 1.807781933
B36: Pre starter 2 | E36: =F36/$F$4*1000 -> 4.100022528 | F36: =IF('Weanling Input'!G23<=0,0,'Weanling Input'!E23*'Weanling Input'!F12/1000) -> 145.6 | G36: =F36/12 -> 12.13333333 | H36: =E36*2.2046 -> 9.038909664
B37: Starter 1 | E37: =F37/$F$4*1000 -> 12.19756702 | F37: =IF('Weanling Input'!G24<=0,0,'Weanling Input'!E24*'Weanling Input'!F12/1000) -> 433.16 | G37: =F37/12 -> 36.09666667 | H37: =E37*2.2046 -> 26.89075625
B38: Starter 2 | E38: =F38/$F$4*1000 -> 24.60013517 | F38: =IF('Weanling Input'!G25<=0,0,'Weanling Input'!E25*'Weanling Input'!F12/1000) -> 873.6 | G38: =F38/12 -> 72.8 | H38: =E38*2.2046 -> 54.23345799
B39: Total | E39: =SUM(E35:E38) -> 41.71772922 | F39: =SUM(F35:F38) -> 1481.48 | G39: =SUM(G35:G38) -> 123.4566667 | H39: =SUM(H35:H38) -> 91.97090583
B41: Total | E41: =E28+E39 -> 1523.197729 | F41: =F28+F39 -> 1604.936667 | G41: =G28+G39 -> 165.1743959 | H41: =H28+H39 -> 183.9418117
